Workbook

Sheet Pacing Guide
A1: K-12 Pacing Guide
A5: Step 1: Choose Chapters Use CTRL to select or deslect more than one chapter/section at a time. | F5: Step 3: Projects, Practice, & Certification Input or change the minutes for each activity. BY DEFAULT, THE MINUTES LISTED ARE A RECOMMENDATION. | I5: Week to Cover | J5: Pacing Guide: Office Pro Sections and Activities | K5: Minutes per Section | L5: Running Total
I6: 1 | J6: 3.1: Getting Started with Office | K6: 62 | L6: =( IF(ISNUMBER(SEARCH("Grand Total",$J6)),"", IF(ISBLANK($K6), "", SUM($K$6:K6) )) ) -> 62 | M6: 135
F7: Word | G7: Minutes | I7: =IFERROR(IF(K6=0,"",ROUNDDOWN(L6/Sheet2!$B$7,0)+1),"") -> 1 | J7: 3.2: Customizing Views and Options | K7: 42 | L7: =( IF(ISNUMBER(SEARCH("Grand Total",$J7)),"", IF(ISBLANK($K7), "", SUM($K$6:K7) )) ) -> 104
F8: 4.14: Office Pro Projects (Uses Live Application) | G8: 120 | I8: =IFERROR(IF(K7=0,"",ROUNDDOWN(L7/Sheet2!$B$7,0)+1),"") -> 1 | J8: 3.3: Printing Files | K8: 40 | L8: =( IF(ISNUMBER(SEARCH("Grand Total",$J8)),"", IF(ISBLANK($K8), "", SUM($K$6:K8) )) ) -> 144
F9: 4.15: My Projects/Assignments (Not Part of Office Pro) | G9: 0 | I9: =IFERROR(IF(K8=0,"",ROUNDDOWN(L8/Sheet2!$B$7,0)+1),"") -> 1 | J9: 3.4: Navigating Files | K9: 44 | L9: =( IF(ISNUMBER(SEARCH("Grand Total",$J9)),"", IF(ISBLANK($K9), "", SUM($K$6:K9) )) ) -> 188 | M9: 0
F10: 4.16: MOS Practice: Domain Questions | G10: 120 | I10: =IFERROR(IF(K9=0,"",ROUNDDOWN(L9/Sheet2!$B$7,0)+1),"") -> 1 | J10: 3.5: Working with Objects | K10: 44 | L10: =( IF(ISNUMBER(SEARCH("Grand Total",$J10)),"", IF(ISBLANK($K10), "", SUM($K$6:K10) )) ) -> 232 | M10: 135
F11: 4.17: MOS Practice: Certification (A and B) | G11: 300 | I11: =IFERROR(IF(K10=0,"",ROUNDDOWN(L10/Sheet2!$B$7,0)+1),"") -> 1 | J11: 4.01: Introduction to Word | K11: 8 | L11: =( IF(ISNUMBER(SEARCH("Grand Total",$J11)),"", IF(ISBLANK($K11), "", SUM($K$6:K11) )) ) -> 240 | M11: 0
F12: 4.18: MOS Certification | G12: 50 | I12: =IFERROR(IF(K11=0,"",ROUNDDOWN(L11/Sheet2!$B$7,0)+1),"") -> 1 | J12: 4.02: Creating Documents and Using the Clipboard | K12: 104 | L12: =( IF(ISNUMBER(SEARCH("Grand Total",$J12)),"", IF(ISBLANK($K12), "", SUM($K$6:K12) )) ) -> 344 | M12: 60
F13: 4.19: Office Pro Exam for Word | G13: 60 | I13: =IFERROR(IF(K12=0,"",ROUNDDOWN(L12/Sheet2!$B$7,0)+1),"") -> 2 | J13: 4.03: Modifying Fonts | K13: 93 | L13: =( IF(ISNUMBER(SEARCH("Grand Total",$J13)),"", IF(ISBLANK($K13), "", SUM($K$6:K13) )) ) -> 437
I14: =IFERROR(IF(K13=0,"",ROUNDDOWN(L13/Sheet2!$B$7,0)+1),"") -> 2 | J14: 4.04: Formatting Paragraphs | K14: 101 | L14: =( IF(ISNUMBER(SEARCH("Grand Total",$J14)),"", IF(ISBLANK($K14), "", SUM($K$6:K14) )) ) -> 538
F15: Excel | G15: Minutes | I15: =IFERROR(IF(K14=0,"",ROUNDDOWN(L14/Sheet2!$B$7,0)+1),"") -> 2 | J15: 4.05: Formatting Pages | K15: 94 | L15: =( IF(ISNUMBER(SEARCH("Grand Total",$J15)),"", IF(ISBLANK($K15), "", SUM($K$6:K15) )) ) -> 632
F16: 5.11: Office Pro Projects (Uses Live Application) | G16: 120 | I16: =IFERROR(IF(K15=0,"",ROUNDDOWN(L15/Sheet2!$B$7,0)+1),"") -> 2 | J16: 4.06: Editing Documents | K16: 95 | L16: =( IF(ISNUMBER(SEARCH("Grand Total",$J16)),"", IF(ISBLANK($K16), "", SUM($K$6:K16) )) ) -> 727
F17: 5.12: My Projects/Assignments (Not Part of Office Pro) | G17: 0 | I17: =IFERROR(IF(K16=0,"",ROUNDDOWN(L16/Sheet2!$B$7,0)+1),"") -> 3 | J17: 4.07: Inserting Illustrations and Other Elements | K17: 96 | L17: =( IF(ISNUMBER(SEARCH("Grand Total",$J17)),"", IF(ISBLANK($K17), "", SUM($K$6:K17) )) ) -> 823
F18: 5.13: MOS Practice: Domain Questions | G18: 120 | I18: =IFERROR(IF(K17=0,"",ROUNDDOWN(L17/Sheet2!$B$7,0)+1),"") -> 3 | J18: 4.08: Creating and Formatting Tables | K18: 97 | L18: =( IF(ISNUMBER(SEARCH("Grand Total",$J18)),"", IF(ISBLANK($K18), "", SUM($K$6:K18) )) ) -> 920
F19: 5.14: MOS Practice: Certification (A and B) | G19: 300 | I19: =IFERROR(IF(K18=0,"",ROUNDDOWN(L18/Sheet2!$B$7,0)+1),"") -> 3 | J19: 4.09: Using Themes, Styles, and Templates | K19: 96 | L19: =( IF(ISNUMBER(SEARCH("Grand Total",$J19)),"", IF(ISBLANK($K19), "", SUM($K$6:K19) )) ) -> 1016
A20: Step 2: Weeks Input number of weeks using Office Pro. | F20: 5.15: MOS Certification | G20: 50 | I20: =IFERROR(IF(K19=0,"",ROUNDDOWN(L19/Sheet2!$B$7,0)+1),"") -> 4 | J20: 4.10: Managing References | K20: 100 | L20: =( IF(ISNUMBER(SEARCH("Grand Total",$J20)),"", IF(ISBLANK($K20), "", SUM($K$6:K20) )) ) -> 1116
F21: 5.16: Office Pro Exam for Excel | G21: 60 | I21: =IFERROR(IF(K20=0,"",ROUNDDOWN(L20/Sheet2!$B$7,0)+1),"") -> 4 | J21: 4.11: Managing Headers, Footers, and Sections | K21: 102 | L21: =( IF(ISNUMBER(SEARCH("Grand Total",$J21)),"", IF(ISBLANK($K21), "", SUM($K$6:K21) )) ) -> 1218
I22: =IFERROR(IF(K21=0,"",ROUNDDOWN(L21/Sheet2!$B$7,0)+1),"") -> 4 | J22: 4.12: Using Office Collaboration Features | K22: 98 | L22: =( IF(ISNUMBER(SEARCH("Grand Total",$J22)),"", IF(ISBLANK($K22), "", SUM($K$6:K22) )) ) -> 1316
A23: 18 | F23: PowerPoint | G23: Minutes | I23: =IFERROR(IF(K22=0,"",ROUNDDOWN(L22/Sheet2!$B$7,0)+1),"") -> 5 | J23: 4.13: Using Macros | K23: 11 | L23: =( IF(ISNUMBER(SEARCH("Grand Total",$J23)),"", IF(ISBLANK($K23), "", SUM($K$6:K23) )) ) -> 1327
F24: 6.11: Office Pro Projects (Uses Live Application) | G24: 120 | I24: =IFERROR(IF(K23=0,"",ROUNDDOWN(L23/Sheet2!$B$7,0)+1),"") -> 5 | J24: 4.14: Office Pro Projects (Uses Live Application) | K24: 120 | L24: =( IF(ISNUMBER(SEARCH("Grand Total",$J24)),"", IF(ISBLANK($K24), "", SUM($K$6:K24) )) ) -> 1447
F25: 6.12: My Projects/Assignments (Not Part of Office Pro) | G25: 0 | I25: =IFERROR(IF(K24=0,"",ROUNDDOWN(L24/Sheet2!$B$7,0)+1),"") -> 5 | J25: 4.15: My Projects/Assignments | K25: 0 | L25: =( IF(ISNUMBER(SEARCH("Grand Total",$J25)),"", IF(ISBLANK($K25), "", SUM($K$6:K25) )) ) -> 1447
F26: 6.13: MOS Practice: Domain Questions | G26: 90 | I26: =IFERROR(IF(K25=0,"",ROUNDDOWN(L25/Sheet2!$B$7,0)+1),"") ->  | J26: 4.16: MOS Practice: Domain Questions | K26: 120 | L26: =( IF(ISNUMBER(SEARCH("Grand Total",$J26)),"", IF(ISBLANK($K26), "", SUM($K$6:K26) )) ) -> 1567
F27: 6.14: MOS Practice: Certification (A and B) | G27: 240 | I27: =IFERROR(IF(K26=0,"",ROUNDDOWN(L26/Sheet2!$B$7,0)+1),"") -> 5 | J27: 4.17: MOS Practice: Certification (A and B) | K27: 300 | L27: =( IF(ISNUMBER(SEARCH("Grand Total",$J27)),"", IF(ISBLANK($K27), "", SUM($K$6:K27) )) ) -> 1867
F28: 6.15: MOS Certification | G28: 50 | I28: =IFERROR(IF(K27=0,"",ROUNDDOWN(L27/Sheet2!$B$7,0)+1),"") -> 6 | J28: 4.18: MOS Certification | K28: 50 | L28: =( IF(ISNUMBER(SEARCH("Grand Total",$J28)),"", IF(ISBLANK($K28), "", SUM($K$6:K28) )) ) -> 1917
F29: 6.16: Office Pro Exam for PowerPoint | G29: 60 | I29: =IFERROR(IF(K28=0,"",ROUNDDOWN(L28/Sheet2!$B$7,0)+1),"") -> 6 | J29: 4.19: Office Pro Word Exam | K29: 60 | L29: =( IF(ISNUMBER(SEARCH("Grand Total",$J29)),"", IF(ISBLANK($K29), "", SUM($K$6:K29) )) ) -> 1977
I30: =IFERROR(IF(K29=0,"",ROUNDDOWN(L29/Sheet2!$B$7,0)+1),"") -> 7 | J30: 5.01: Introduction to Excel | K30: 8 | L30: =( IF(ISNUMBER(SEARCH("Grand Total",$J30)),"", IF(ISBLANK($K30), "", SUM($K$6:K30) )) ) -> 1985
I31: =IFERROR(IF(K30=0,"",ROUNDDOWN(L30/Sheet2!$B$7,0)+1),"") -> 7 | J31: 5.02: Creating and Managing Workbooks | K31: 95 | L31: =( IF(ISNUMBER(SEARCH("Grand Total",$J31)),"", IF(ISBLANK($K31), "", SUM($K$6:K31) )) ) -> 2080
I32: =IFERROR(IF(K31=0,"",ROUNDDOWN(L31/Sheet2!$B$7,0)+1),"") -> 7 | J32: 5.03: Organizing and Entering Data | K32: 95 | L32: =( IF(ISNUMBER(SEARCH("Grand Total",$J32)),"", IF(ISBLANK($K32), "", SUM($K$6:K32) )) ) -> 2175
I33: =IFERROR(IF(K32=0,"",ROUNDDOWN(L32/Sheet2!$B$7,0)+1),"") -> 7 | J33: 5.04: Changing Properties and Printing Worksheets | K33: 95 | L33: =( IF(ISNUMBER(SEARCH("Grand Total",$J33)),"", IF(ISBLANK($K33), "", SUM($K$6:K33) )) ) -> 2270
I34: =IFERROR(IF(K33=0,"",ROUNDDOWN(L33/Sheet2!$B$7,0)+1),"") -> 8 | J34: 5.05: Formatting Cells | K34: 98 | L34: =( IF(ISNUMBER(SEARCH("Grand Total",$J34)),"", IF(ISBLANK($K34), "", SUM($K$6:K34) )) ) -> 2368
I35: =IFERROR(IF(K34=0,"",ROUNDDOWN(L34/Sheet2!$B$7,0)+1),"") -> 8 | J35: 5.06: Entering Simple Formulas | K35: 115 | L35: =( IF(ISNUMBER(SEARCH("Grand Total",$J35)),"", IF(ISBLANK($K35), "", SUM($K$6:K35) )) ) -> 2483
I36: =IFERROR(IF(K35=0,"",ROUNDDOWN(L35/Sheet2!$B$7,0)+1),"") -> 8 | J36: 5.07: Using Advanced Functions | K36: 133 | L36: =( IF(ISNUMBER(SEARCH("Grand Total",$J36)),"", IF(ISBLANK($K36), "", SUM($K$6:K36) )) ) -> 2616
I37: =IFERROR(IF(K36=0,"",ROUNDDOWN(L36/Sheet2!$B$7,0)+1),"") -> 9 | J37: 5.08: Displaying Data in Charts | K37: 91 | L37: =( IF(ISNUMBER(SEARCH("Grand Total",$J37)),"", IF(ISBLANK($K37), "", SUM($K$6:K37) )) ) -> 2707
I38: =IFERROR(IF(K37=0,"",ROUNDDOWN(L37/Sheet2!$B$7,0)+1),"") -> 9 | J38: 5.09: Organizing Data in Tables | K38: 93 | L38: =( IF(ISNUMBER(SEARCH("Grand Total",$J38)),"", IF(ISBLANK($K38), "", SUM($K$6:K38) )) ) -> 2800
I39: =IFERROR(IF(K38=0,"",ROUNDDOWN(L38/Sheet2!$B$7,0)+1),"") -> 9 | J39: 5.10: Summarizing Complex Data | K39: 99 | L39: =( IF(ISNUMBER(SEARCH("Grand Total",$J39)),"", IF(ISBLANK($K39), "", SUM($K$6:K39) )) ) -> 2899
I40: =IFERROR(IF(K39=0,"",ROUNDDOWN(L39/Sheet2!$B$7,0)+1),"") -> 10 | J40: 5.11: Office Pro Projects (Uses Live Application) | K40: 120 | L40: =( IF(ISNUMBER(SEARCH("Grand Total",$J40)),"", IF(ISBLANK($K40), "", SUM($K$6:K40) )) ) -> 3019
I41: =IFERROR(IF(K40=0,"",ROUNDDOWN(L40/Sheet2!$B$7,0)+1),"") -> 10 | J41: 5.12: My Projects/Assignments | K41: 0 | L41: =( IF(ISNUMBER(SEARCH("Grand Total",$J41)),"", IF(ISBLANK($K41), "", SUM($K$6:K41) )) ) -> 3019
I42: =IFERROR(IF(K41=0,"",ROUNDDOWN(L41/Sheet2!$B$7,0)+1),"") ->  | J42: 5.13: MOS Practice: Domain Questions | K42: 120 | L42: =( IF(ISNUMBER(SEARCH("Grand Total",$J42)),"", IF(ISBLANK($K42), "", SUM($K$6:K42) )) ) -> 3139
I43: =IFERROR(IF(K42=0,"",ROUNDDOWN(L42/Sheet2!$B$7,0)+1),"") -> 10 | J43: 5.14: MOS Practice: Certification (A and B) | K43: 300 | L43: =( IF(ISNUMBER(SEARCH("Grand Total",$J43)),"", IF(ISBLANK($K43), "", SUM($K$6:K43) )) ) -> 3439
I44: =IFERROR(IF(K43=0,"",ROUNDDOWN(L43/Sheet2!$B$7,0)+1),"") -> 11 | J44: 5.15: MOS Certification | K44: 50 | L44: =( IF(ISNUMBER(SEARCH("Grand Total",$J44)),"", IF(ISBLANK($K44), "", SUM($K$6:K44) )) ) -> 3489
I45: =IFERROR(IF(K44=0,"",ROUNDDOWN(L44/Sheet2!$B$7,0)+1),"") -> 11 | J45: 5.16: Office Pro Excel Exam | K45: 60 | L45: =( IF(ISNUMBER(SEARCH("Grand Total",$J45)),"", IF(ISBLANK($K45), "", SUM($K$6:K45) )) ) -> 3549
I46: =IFERROR(IF(K45=0,"",ROUNDDOWN(L45/Sheet2!$B$7,0)+1),"") -> 12 | J46: 6.01: Introduction to PowerPoint | K46: 12 | L46: =( IF(ISNUMBER(SEARCH("Grand Total",$J46)),"", IF(ISBLANK($K46), "", SUM($K$6:K46) )) ) -> 3561
I47: =IFERROR(IF(K46=0,"",ROUNDDOWN(L46/Sheet2!$B$7,0)+1),"") -> 12 | J47: 6.02: Creating and Managing Presentations | K47: 75 | L47: =( IF(ISNUMBER(SEARCH("Grand Total",$J47)),"", IF(ISBLANK($K47), "", SUM($K$6:K47) )) ) -> 3636
I48: =IFERROR(IF(K47=0,"",ROUNDDOWN(L47/Sheet2!$B$7,0)+1),"") -> 12 | J48: 6.03: Formatting Textual Content | K48: 81 | L48: =( IF(ISNUMBER(SEARCH("Grand Total",$J48)),"", IF(ISBLANK($K48), "", SUM($K$6:K48) )) ) -> 3717
I49: =IFERROR(IF(K48=0,"",ROUNDDOWN(L48/Sheet2!$B$7,0)+1),"") -> 12 | J49: 6.04: Designing Slides | K49: 76 | L49: =( IF(ISNUMBER(SEARCH("Grand Total",$J49)),"", IF(ISBLANK($K49), "", SUM($K$6:K49) )) ) -> 3793
I50: =IFERROR(IF(K49=0,"",ROUNDDOWN(L49/Sheet2!$B$7,0)+1),"") -> 12 | J50: 6.05: Using the Slide Master | K50: 77 | L50: =( IF(ISNUMBER(SEARCH("Grand Total",$J50)),"", IF(ISBLANK($K50), "", SUM($K$6:K50) )) ) -> 3870
I51: =IFERROR(IF(K50=0,"",ROUNDDOWN(L50/Sheet2!$B$7,0)+1),"") -> 13 | J51: 6.06: Formatting SmartArt and Shapes | K51: 77 | L51: =( IF(ISNUMBER(SEARCH("Grand Total",$J51)),"", IF(ISBLANK($K51), "", SUM($K$6:K51) )) ) -> 3947
I52: =IFERROR(IF(K51=0,"",ROUNDDOWN(L51/Sheet2!$B$7,0)+1),"") -> 13 | J52: 6.07: Formatting Tables and Charts | K52: 77 | L52: =( IF(ISNUMBER(SEARCH("Grand Total",$J52)),"", IF(ISBLANK($K52), "", SUM($K$6:K52) )) ) -> 4024
I53: =IFERROR(IF(K52=0,"",ROUNDDOWN(L52/Sheet2!$B$7,0)+1),"") -> 13 | J53: 6.08: Formatting Pictures and Other Media | K53: 79 | L53: =( IF(ISNUMBER(SEARCH("Grand Total",$J53)),"", IF(ISBLANK($K53), "", SUM($K$6:K53) )) ) -> 4103
I54: =IFERROR(IF(K53=0,"",ROUNDDOWN(L53/Sheet2!$B$7,0)+1),"") -> 13 | J54: 6.09: Applying Animations and Transitions | K54: 77 | L54: =( IF(ISNUMBER(SEARCH("Grand Total",$J54)),"", IF(ISBLANK($K54), "", SUM($K$6:K54) )) ) -> 4180
I55: =IFERROR(IF(K54=0,"",ROUNDDOWN(L54/Sheet2!$B$7,0)+1),"") -> 14 | J55: 6.10: Delivering Presentations | K55: 81 | L55: =( IF(ISNUMBER(SEARCH("Grand Total",$J55)),"", IF(ISBLANK($K55), "", SUM($K$6:K55) )) ) -> 4261
I56: =IFERROR(IF(K55=0,"",ROUNDDOWN(L55/Sheet2!$B$7,0)+1),"") -> 14 | J56: 6.11: Office Pro Projects (Uses Live Application) | K56: 120 | L56: =( IF(ISNUMBER(SEARCH("Grand Total",$J56)),"", IF(ISBLANK($K56), "", SUM($K$6:K56) )) ) -> 4381
I57: =IFERROR(IF(K56=0,"",ROUNDDOWN(L56/Sheet2!$B$7,0)+1),"") -> 14 | J57: 6.12: My Projects/Assignments | K57: 0 | L57: =( IF(ISNUMBER(SEARCH("Grand Total",$J57)),"", IF(ISBLANK($K57), "", SUM($K$6:K57) )) ) -> 4381
I58: =IFERROR(IF(K57=0,"",ROUNDDOWN(L57/Sheet2!$B$7,0)+1),"") ->  | J58: 6.13: MOS Practice: Domain Questions | K58: 90 | L58: =( IF(ISNUMBER(SEARCH("Grand Total",$J58)),"", IF(ISBLANK($K58), "", SUM($K$6:K58) )) ) -> 4471
I59: =IFERROR(IF(K58=0,"",ROUNDDOWN(L58/Sheet2!$B$7,0)+1),"") -> 14 | J59: 6.14: MOS Practice: Certification (A and B) | K59: 240 | L59: =( IF(ISNUMBER(SEARCH("Grand Total",$J59)),"", IF(ISBLANK($K59), "", SUM($K$6:K59) )) ) -> 4711
I60: =IFERROR(IF(K59=0,"",ROUNDDOWN(L59/Sheet2!$B$7,0)+1),"") -> 15 | J60: 6.15: MOS Certification | K60: 50 | L60: =( IF(ISNUMBER(SEARCH("Grand Total",$J60)),"", IF(ISBLANK($K60), "", SUM($K$6:K60) )) ) -> 4761
I61: =IFERROR(IF(K60=0,"",ROUNDDOWN(L60/Sheet2!$B$7,0)+1),"") -> 15 | J61: 6.16: Office Pro PowerPoint Exam | K61: 60 | L61: =( IF(ISNUMBER(SEARCH("Grand Total",$J61)),"", IF(ISBLANK($K61), "", SUM($K$6:K61) )) ) -> 4821
I62: =IFERROR(IF(K61=0,"",ROUNDDOWN(L61/Sheet2!$B$7,0)+1),"") -> 16 | J62: 7.1: Introduction to Access | K62: 9 | L62: =( IF(ISNUMBER(SEARCH("Grand Total",$J62)),"", IF(ISBLANK($K62), "", SUM($K$6:K62) )) ) -> 4830
I63: =IFERROR(IF(K62=0,"",ROUNDDOWN(L62/Sheet2!$B$7,0)+1),"") -> 16 | J63: 7.2: Managing Databases | K63: 96 | L63: =( IF(ISNUMBER(SEARCH("Grand Total",$J63)),"", IF(ISBLANK($K63), "", SUM($K$6:K63) )) ) -> 4926
I64: =IFERROR(IF(K63=0,"",ROUNDDOWN(L63/Sheet2!$B$7,0)+1),"") -> 16 | J64: 7.3: Designing and Creating Tables | K64: 85 | L64: =( IF(ISNUMBER(SEARCH("Grand Total",$J64)),"", IF(ISBLANK($K64), "", SUM($K$6:K64) )) ) -> 5011
I65: =IFERROR(IF(K64=0,"",ROUNDDOWN(L64/Sheet2!$B$7,0)+1),"") -> 16 | J65: 7.4: Using Simple Queries | K65: 78 | L65: =( IF(ISNUMBER(SEARCH("Grand Total",$J65)),"", IF(ISBLANK($K65), "", SUM($K$6:K65) )) ) -> 5089
I66: =IFERROR(IF(K65=0,"",ROUNDDOWN(L65/Sheet2!$B$7,0)+1),"") -> 16 | J66: 7.5: Creating Forms | K66: 76 | L66: =( IF(ISNUMBER(SEARCH("Grand Total",$J66)),"", IF(ISBLANK($K66), "", SUM($K$6:K66) )) ) -> 5165
I67: =IFERROR(IF(K66=0,"",ROUNDDOWN(L66/Sheet2!$B$7,0)+1),"") -> 17 | J67: 7.6: Creating Reports | K67: 80 | L67: =( IF(ISNUMBER(SEARCH("Grand Total",$J67)),"", IF(ISBLANK($K67), "", SUM($K$6:K67) )) ) -> 5245
I68: =IFERROR(IF(K67=0,"",ROUNDDOWN(L67/Sheet2!$B$7,0)+1),"") -> 17 | J68: 7.7: Surveying Advanced Access Features | K68: 43 | L68: =( IF(ISNUMBER(SEARCH("Grand Total",$J68)),"", IF(ISBLANK($K68), "", SUM($K$6:K68) )) ) -> 5288
I69: =IFERROR(IF(K68=0,"",ROUNDDOWN(L68/Sheet2!$B$7,0)+1),"") -> 17 | J69: 7.8: Exam: Access | K69: 60 | L69: =( IF(ISNUMBER(SEARCH("Grand Total",$J69)),"", IF(ISBLANK($K69), "", SUM($K$6:K69) )) ) -> 5348
I70: =IFERROR(IF(K69=0,"",ROUNDDOWN(L69/Sheet2!$B$7,0)+1),"") -> 17 | J70: 8.1: Introduction to Outlook | K70: 11 | L70: =( IF(ISNUMBER(SEARCH("Grand Total",$J70)),"", IF(ISBLANK($K70), "", SUM($K$6:K70) )) ) -> 5359
I71: =IFERROR(IF(K70=0,"",ROUNDDOWN(L70/Sheet2!$B$7,0)+1),"") -> 17 | J71: 8.2: Sending and Receiving Messages | K71: 85 | L71: =( IF(ISNUMBER(SEARCH("Grand Total",$J71)),"", IF(ISBLANK($K71), "", SUM($K$6:K71) )) ) -> 5444
I72: =IFERROR(IF(K71=0,"",ROUNDDOWN(L71/Sheet2!$B$7,0)+1),"") -> 18 | J72: 8.3: Managing Messages | K72: 90 | L72: =( IF(ISNUMBER(SEARCH("Grand Total",$J72)),"", IF(ISBLANK($K72), "", SUM($K$6:K72) )) ) -> 5534
I73: =IFERROR(IF(K72=0,"",ROUNDDOWN(L72/Sheet2!$B$7,0)+1),"") -> 18 | J73: 8.4: Working with the Calendar | K73: 83 | L73: =( IF(ISNUMBER(SEARCH("Grand Total",$J73)),"", IF(ISBLANK($K73), "", SUM($K$6:K73) )) ) -> 5617
I74: =IFERROR(IF(K73=0,"",ROUNDDOWN(L73/Sheet2!$B$7,0)+1),"") -> 18 | J74: 8.5: Managing Contacts and Groups | K74: 82 | L74: =( IF(ISNUMBER(SEARCH("Grand Total",$J74)),"", IF(ISBLANK($K74), "", SUM($K$6:K74) )) ) -> 5699
I75: =IFERROR(IF(K74=0,"",ROUNDDOWN(L74/Sheet2!$B$7,0)+1),"") -> 18 | J75: 8.6: Exam: Outlook | K75: 60 | L75: =( IF(ISNUMBER(SEARCH("Grand Total",$J75)),"", IF(ISBLANK($K75), "", SUM($K$6:K75) )) ) -> 5759
I76: =IFERROR(IF(K75=0,"",ROUNDDOWN(L75/Sheet2!$B$7,0)+1),"") -> 19 | J76: Grand Total | K76: 5759 | L76: =( IF(ISNUMBER(SEARCH("Grand Total",$J76)),"", IF(ISBLANK($K76), "", SUM($K$6:K76) )) ) -> 
I77: =IFERROR(IF(K76=0,"",ROUNDDOWN(L76/Sheet2!$B$7,0)+1),"") ->  | L77: =( IF(ISNUMBER(SEARCH("Grand Total",$J77)),"", IF(ISBLANK($K77), "", SUM($K$6:K77) )) ) -> 
I78: =IFERROR(IF(K77=0,"",ROUNDDOWN(L77/Sheet2!$B$7,0)+1),"") ->  | L78: =( IF(ISNUMBER(SEARCH("Grand Total",$J78)),"", IF(ISBLANK($K78), "", SUM($K$6:K78) )) ) -> 
I79: =IFERROR(IF(K78=0,"",ROUNDDOWN(L78/Sheet2!$B$7,0)+1),"") ->  | L79: =( IF(ISNUMBER(SEARCH("Grand Total",$J79)),"", IF(ISBLANK($K79), "", SUM($K$6:K79) )) ) -> 
I80: =IFERROR(IF(K79=0,"",ROUNDDOWN(L79/Sheet2!$B$7,0)+1),"") ->  | L80: =( IF(ISNUMBER(SEARCH("Grand Total",$J80)),"", IF(ISBLANK($K80), "", SUM($K$6:K80) )) ) -> 
I81: =IFERROR(IF(K80=0,"",ROUNDDOWN(L80/Sheet2!$B$7,0)+1),"") ->  | L81: =( IF(ISNUMBER(SEARCH("Grand Total",$J81)),"", IF(ISBLANK($K81), "", SUM($K$6:K81) )) ) -> 
I82: =IFERROR(IF(K81=0,"",ROUNDDOWN(L81/Sheet2!$B$7,0)+1),"") ->  | L82: =( IF(ISNUMBER(SEARCH("Grand Total",$J82)),"", IF(ISBLANK($K82), "", SUM($K$6:K82) )) ) -> 
I83: =IF(K82=0,"",ROUNDDOWN(L82/Sheet2!$B$7,0)+1) ->  | L83: =( IF(ISNUMBER(SEARCH("Grand Total",$J83)),"", IF(ISBLANK($K83), "", SUM($K$6:K83) )) ) -> 
I84: =IF(K83=0,"",ROUNDDOWN(L83/Sheet2!$B$7,0)+1) ->  | L84: =( IF(ISNUMBER(SEARCH("Grand Total",$J84)),"", IF(ISBLANK($K84), "", SUM($K$6:K84) )) ) -> 
I85: =IF(K84=0,"",ROUNDDOWN(L84/Sheet2!$B$7,0)+1) ->  | L85: =( IF(ISNUMBER(SEARCH("Grand Total",$J85)),"", IF(ISBLANK($K85), "", SUM($K$6:K85) )) ) -> 
I86: =IF(K85=0,"",ROUNDDOWN(L85/Sheet2!$B$7,0)+1) ->  | L86: =( IF(ISNUMBER(SEARCH("Grand Total",$J86)),"", IF(ISBLANK($K86), "", SUM($K$6:K86) )) ) -> 

Sheet Advanced Guide (hidden)
B2: Step 6: Class Components For each Component, select Yes or No from the drop-down • Yes = Retains/Adds Time • No = Removes Time
D7: Avg. # of Min. | E7: Homework Recommendations
E8: Traditional | F8: Hybrid | P8: Online | Q8: Flipped
B9: Videos | C9: Yes | D9: 15 | E9: No | F9: No | G9: =IF(C9="No",-15,0) -> 0 | P9: Yes | Q9: No
B10: Skills Lab | C10: Yes | D10: 25 | E10: Yes | F10: Yes | G10: =IF(C10="No",-25,0) -> 0 | P10: Yes | Q10: Yes
B11: Challenge Lab | C11: Yes | D11: 15 | E11: Yes | F11: No | G11: =IF(C11="No",-15,0) -> 0 | P11: Yes | Q11: Yes
B12: Applied | C12: Yes | D12: 20 | E12: Yes | F12: No | G12: =IF(C12="No",-20,0) -> 0 | P12: Yes | Q12: No
B13: Class Lectures | C13: 0
B15: School Week | C15: Sections Per Week | D15: Content Per Week | E15: Class Activity Time | F15: Over Under Time | G15: Column2 | H15: Fact & Tip | I15: Skills | J15: Challenge | K15: Applied | L15: Videos | M15: discussions | N15: Min. Per Week | V15: Content Per Week
B16: 1 | C16: =IFERROR(IF(V16=0,"",COUNTIF('Pacing Guide'!$I$6:$I$84,1)),"") -> 7 | D16: =IF(SUMIF('Pacing Guide'!I$6:I$85,B16,'Pacing Guide'!K$6:K$85)=0,"",SUMIF('Pacing Guide'!I$6:I$85,B16,'Pacing Guide'!K$6:K$85)) -> 344 | E16: =IFERROR(D16+M16+I16+J16+K16+L16,"") -> 344 | F16: =IFERROR(IF(Table3[[#This Row],[Class Activity Time]]=0,"",N16-E16),"") -> -344 | H16: =C16*'Advanced Guide'!#REF! ->  | I16: =Table3[[#This Row],[Sections Per Week]]*$G$10 -> 0 | J16: =$G$11*Table3[[#This Row],[Sections Per Week]] -> 0 | K16: =Table3[[#This Row],[Sections Per Week]]*$G$12 -> 0 | L16: =Table3[[#This Row],[Sections Per Week]]*$G$9 -> 0 | M16: ='Advanced Guide'!$C$13*Table3[[#This Row],[Sections Per Week]] -> 0 | N16: =IF(Table3[[#This Row],[Content Per Week]]=0,"",'Pacing Guide'!$A$32*'Advanced Guide'!$P$18) -> 0 | V16: =Table3[[#This Row],[Content Per Week]]/$P$17 -> 05:44:00 | X16: =E16/1440 -> 05:44:00 | Y16: =F16/1440 -> -0.2388888889
B17: 2 | C17: =IFERROR(IF(V17=0,"",COUNTIF('Pacing Guide'!$I$6:$I$84,1)),"") -> 7 | D17: =IF(SUMIF('Pacing Guide'!I$6:I$85,B17,'Pacing Guide'!K$6:K$85)=0,"",SUMIF('Pacing Guide'!I$6:I$85,B17,'Pacing Guide'!K$6:K$85)) -> 383 | E17: 383 | F17: =IFERROR(IF(Table3[[#This Row],[Class Activity Time]]=0,"",N17-E17),"") -> -383 | H17: =C17*'Advanced Guide'!#REF! ->  | I17: =Table3[[#This Row],[Sections Per Week]]*$G$10 -> 0 | J17: =$G$11*Table3[[#This Row],[Sections Per Week]] -> 0 | K17: =Table3[[#This Row],[Sections Per Week]]*$G$12 -> 0 | L17: =Table3[[#This Row],[Sections Per Week]]*$G$9 -> 0 | M17: ='Advanced Guide'!$C$13*Table3[[#This Row],[Sections Per Week]] -> 0 | N17: =IF(Table3[[#This Row],[Content Per Week]]=0,"",'Pacing Guide'!$A$32*'Advanced Guide'!$P$18) -> 0 | P17: 1440 | V17: =Table3[[#This Row],[Content Per Week]]/$P$17 -> 06:23:00
B18: 3 | C18: =IFERROR(IF(V18=0,"",COUNTIF('Pacing Guide'!$I$6:$I$84,1)),"") -> 7 | D18: =IF(SUMIF('Pacing Guide'!I$6:I$85,B18,'Pacing Guide'!K$6:K$85)=0,"",SUMIF('Pacing Guide'!I$6:I$85,B18,'Pacing Guide'!K$6:K$85)) -> 289 | E18: 289 | F18: =IFERROR(IF(Table3[[#This Row],[Class Activity Time]]=0,"",N18-E18),"") -> -289 | H18: =C18*'Advanced Guide'!#REF! ->  | I18: =Table3[[#This Row],[Sections Per Week]]*$G$10 -> 0 | J18: =$G$11*Table3[[#This Row],[Sections Per Week]] -> 0 | K18: =Table3[[#This Row],[Sections Per Week]]*$G$12 -> 0 | L18: =Table3[[#This Row],[Sections Per Week]]*$G$9 -> 0 | M18: ='Advanced Guide'!$C$13*Table3[[#This Row],[Sections Per Week]] -> 0 | N18: =IF(Table3[[#This Row],[Content Per Week]]=0,"",'Pacing Guide'!$A$32*'Advanced Guide'!$P$18) -> 0 | P18: 60 | V18: =Table3[[#This Row],[Content Per Week]]/$P$17 -> 04:49:00
B19: 4 | C19: =IFERROR(IF(V19=0,"",COUNTIF('Pacing Guide'!$I$6:$I$84,1)),"") -> 7 | D19: =IF(SUMIF('Pacing Guide'!I$6:I$85,B19,'Pacing Guide'!K$6:K$85)=0,"",SUMIF('Pacing Guide'!I$6:I$85,B19,'Pacing Guide'!K$6:K$85)) -> 300 | E19: 300 | F19: =IFERROR(IF(Table3[[#This Row],[Class Activity Time]]=0,"",N19-E19),"") -> -300 | H19: =C19*'Advanced Guide'!#REF! ->  | I19: =Table3[[#This Row],[Sections Per Week]]*$G$10 -> 0 | J19: =$G$11*Table3[[#This Row],[Sections Per Week]] -> 0 | K19: =Table3[[#This Row],[Sections Per Week]]*$G$12 -> 0 | L19: =Table3[[#This Row],[Sections Per Week]]*$G$9 -> 0 | M19: ='Advanced Guide'!$C$13*Table3[[#This Row],[Sections Per Week]] -> 0 | N19: =IF(Table3[[#This Row],[Content Per Week]]=0,"",'Pacing Guide'!$A$32*'Advanced Guide'!$P$18) -> 0 | V19: =Table3[[#This Row],[Content Per Week]]/$P$17 -> 05:00:00
B20: 5 | C20: =IFERROR(IF(V20=0,"",COUNTIF('Pacing Guide'!$I$6:$I$84,1)),"") -> 7 | D20: =IF(SUMIF('Pacing Guide'!I$6:I$85,B20,'Pacing Guide'!K$6:K$85)=0,"",SUMIF('Pacing Guide'!I$6:I$85,B20,'Pacing Guide'!K$6:K$85)) -> 431 | E20: 431 | F20: =IFERROR(IF(Table3[[#This Row],[Class Activity Time]]=0,"",N20-E20),"") -> -431 | H20: =C20*'Advanced Guide'!#REF! ->  | I20: =Table3[[#This Row],[Sections Per Week]]*$G$10 -> 0 | J20: =$G$11*Table3[[#This Row],[Sections Per Week]] -> 0 | K20: =Table3[[#This Row],[Sections Per Week]]*$G$12 -> 0 | L20: =Table3[[#This Row],[Sections Per Week]]*$G$9 -> 0 | M20: ='Advanced Guide'!$C$13*Table3[[#This Row],[Sections Per Week]] -> 0 | N20: =IF(Table3[[#This Row],[Content Per Week]]=0,"",'Pacing Guide'!$A$32*'Advanced Guide'!$P$18) -> 0 | V20: =Table3[[#This Row],[Content Per Week]]/$P$17 -> 07:11:00
B21: 6 | C21: =IFERROR(IF(V21=0,"",COUNTIF('Pacing Guide'!$I$6:$I$84,1)),"") -> 7 | D21: =IF(SUMIF('Pacing Guide'!I$6:I$85,B21,'Pacing Guide'!K$6:K$85)=0,"",SUMIF('Pacing Guide'!I$6:I$85,B21,'Pacing Guide'!K$6:K$85)) -> 110 | E21: 110 | F21: =IFERROR(IF(Table3[[#This Row],[Class Activity Time]]=0,"",N21-E21),"") -> -110 | H21: =C21*'Advanced Guide'!#REF! ->  | I21: =Table3[[#This Row],[Sections Per Week]]*$G$10 -> 0 | J21: =$G$11*Table3[[#This Row],[Sections Per Week]] -> 0 | K21: =Table3[[#This Row],[Sections Per Week]]*$G$12 -> 0 | L21: =Table3[[#This Row],[Sections Per Week]]*$G$9 -> 0 | M21: ='Advanced Guide'!$C$13*Table3[[#This Row],[Sections Per Week]] -> 0 | N21: =IF(Table3[[#This Row],[Content Per Week]]=0,"",'Pacing Guide'!$A$32*'Advanced Guide'!$P$18) -> 0 | V21: =Table3[[#This Row],[Content Per Week]]/$P$17 -> 01:50:00
B22: 7 | C22: =IFERROR(IF(V22=0,"",COUNTIF('Pacing Guide'!$I$6:$I$84,1)),"") -> 7 | D22: =IF(SUMIF('Pacing Guide'!I$6:I$85,B22,'Pacing Guide'!K$6:K$85)=0,"",SUMIF('Pacing Guide'!I$6:I$85,B22,'Pacing Guide'!K$6:K$85)) -> 293 | E22: 293 | F22: =IFERROR(IF(Table3[[#This Row],[Class Activity Time]]=0,"",N22-E22),"") -> -293 | H22: =C22*'Advanced Guide'!#REF! ->  | I22: =Table3[[#This Row],[Sections Per Week]]*$G$10 -> 0 | J22: =$G$11*Table3[[#This Row],[Sections Per Week]] -> 0 | K22: =Table3[[#This Row],[Sections Per Week]]*$G$12 -> 0 | L22: =Table3[[#This Row],[Sections Per Week]]*$G$9 -> 0 | M22: ='Advanced Guide'!$C$13*Table3[[#This Row],[Sections Per Week]] -> 0 | N22: =IF(Table3[[#This Row],[Content Per Week]]=0,"",'Pacing Guide'!$A$32*'Advanced Guide'!$P$18) -> 0 | V22: =Table3[[#This Row],[Content Per Week]]/$P$17 -> 04:53:00
B23: 8 | C23: =IFERROR(IF(V23=0,"",COUNTIF('Pacing Guide'!$I$6:$I$84,1)),"") -> 7 | D23: =IF(SUMIF('Pacing Guide'!I$6:I$85,B23,'Pacing Guide'!K$6:K$85)=0,"",SUMIF('Pacing Guide'!I$6:I$85,B23,'Pacing Guide'!K$6:K$85)) -> 346 | E23: 346 | F23: =IFERROR(IF(Table3[[#This Row],[Class Activity Time]]=0,"",N23-E23),"") -> -346 | H23: =C23*'Advanced Guide'!#REF! ->  | I23: =Table3[[#This Row],[Sections Per Week]]*$G$10 -> 0 | J23: =$G$11*Table3[[#This Row],[Sections Per Week]] -> 0 | K23: =Table3[[#This Row],[Sections Per Week]]*$G$12 -> 0 | L23: =Table3[[#This Row],[Sections Per Week]]*$G$9 -> 0 | M23: ='Advanced Guide'!$C$13*Table3[[#This Row],[Sections Per Week]] -> 0 | N23: =IF(Table3[[#This Row],[Content Per Week]]=0,"",'Pacing Guide'!$A$32*'Advanced Guide'!$P$18) -> 0 | V23: =Table3[[#This Row],[Content Per Week]]/$P$17 -> 05:46:00
B24: 9 | C24: =IFERROR(IF(V24=0,"",COUNTIF('Pacing Guide'!$I$6:$I$84,1)),"") -> 7 | D24: =IF(SUMIF('Pacing Guide'!I$6:I$85,B24,'Pacing Guide'!K$6:K$85)=0,"",SUMIF('Pacing Guide'!I$6:I$85,B24,'Pacing Guide'!K$6:K$85)) -> 283 | E24: 283 | F24: =IFERROR(IF(Table3[[#This Row],[Class Activity Time]]=0,"",N24-E24),"") -> -283 | H24: =C24*'Advanced Guide'!#REF! ->  | I24: =Table3[[#This Row],[Sections Per Week]]*$G$10 -> 0 | J24: =$G$11*Table3[[#This Row],[Sections Per Week]] -> 0 | K24: =Table3[[#This Row],[Sections Per Week]]*$G$12 -> 0 | L24: =Table3[[#This Row],[Sections Per Week]]*$G$9 -> 0 | M24: ='Advanced Guide'!$C$13*Table3[[#This Row],[Sections Per Week]] -> 0 | N24: =IF(Table3[[#This Row],[Content Per Week]]=0,"",'Pacing Guide'!$A$32*'Advanced Guide'!$P$18) -> 0 | V24: =Table3[[#This Row],[Content Per Week]]/$P$17 -> 04:43:00
B25: 10 | C25: =IFERROR(IF(V25=0,"",COUNTIF('Pacing Guide'!$I$6:$I$84,1)),"") -> 7 | D25: =IF(SUMIF('Pacing Guide'!I$6:I$85,B25,'Pacing Guide'!K$6:K$85)=0,"",SUMIF('Pacing Guide'!I$6:I$85,B25,'Pacing Guide'!K$6:K$85)) -> 420 | E25: 420 | F25: =IFERROR(IF(Table3[[#This Row],[Class Activity Time]]=0,"",N25-E25),"") -> -420 | H25: =C25*'Advanced Guide'!#REF! ->  | I25: =Table3[[#This Row],[Sections Per Week]]*$G$10 -> 0 | J25: =$G$11*Table3[[#This Row],[Sections Per Week]] -> 0 | K25: =Table3[[#This Row],[Sections Per Week]]*$G$12 -> 0 | L25: =Table3[[#This Row],[Sections Per Week]]*$G$9 -> 0 | M25: ='Advanced Guide'!$C$13*Table3[[#This Row],[Sections Per Week]] -> 0 | N25: =IF(Table3[[#This Row],[Content Per Week]]=0,"",'Pacing Guide'!$A$32*'Advanced Guide'!$P$18) -> 0 | V25: =Table3[[#This Row],[Content Per Week]]/$P$17 -> 07:00:00
B26: 11 | C26: =IFERROR(IF(V26=0,"",COUNTIF('Pacing Guide'!$I$6:$I$84,1)),"") -> 7 | D26: =IF(SUMIF('Pacing Guide'!I$6:I$85,B26,'Pacing Guide'!K$6:K$85)=0,"",SUMIF('Pacing Guide'!I$6:I$85,B26,'Pacing Guide'!K$6:K$85)) -> 110 | E26: 110 | F26: =IFERROR(IF(Table3[[#This Row],[Class Activity Time]]=0,"",N26-E26),"") -> -110 | H26: =C26*'Advanced Guide'!#REF! ->  | I26: =Table3[[#This Row],[Sections Per Week]]*$G$10 -> 0 | J26: =$G$11*Table3[[#This Row],[Sections Per Week]] -> 0 | K26: =Table3[[#This Row],[Sections Per Week]]*$G$12 -> 0 | L26: =Table3[[#This Row],[Sections Per Week]]*$G$9 -> 0 | M26: ='Advanced Guide'!$C$13*Table3[[#This Row],[Sections Per Week]] -> 0 | N26: =IF(Table3[[#This Row],[Content Per Week]]=0,"",'Pacing Guide'!$A$32*'Advanced Guide'!$P$18) -> 0 | V26: =Table3[[#This Row],[Content Per Week]]/$P$17 -> 01:50:00
B27: 12 | C27: =IFERROR(IF(V27=0,"",COUNTIF('Pacing Guide'!$I$6:$I$84,1)),"") -> 7 | D27: =IF(SUMIF('Pacing Guide'!I$6:I$85,B27,'Pacing Guide'!K$6:K$85)=0,"",SUMIF('Pacing Guide'!I$6:I$85,B27,'Pacing Guide'!K$6:K$85)) -> 321 | E27: 321 | F27: =IFERROR(IF(Table3[[#This Row],[Class Activity Time]]=0,"",N27-E27),"") -> -321 | H27: =C27*'Advanced Guide'!#REF! ->  | I27: =Table3[[#This Row],[Sections Per Week]]*$G$10 -> 0 | J27: =$G$11*Table3[[#This Row],[Sections Per Week]] -> 0 | K27: =Table3[[#This Row],[Sections Per Week]]*$G$12 -> 0 | L27: =Table3[[#This Row],[Sections Per Week]]*$G$9 -> 0 | M27: ='Advanced Guide'!$C$13*Table3[[#This Row],[Sections Per Week]] -> 0 | N27: =IF(Table3[[#This Row],[Content Per Week]]=0,"",'Pacing Guide'!$A$32*'Advanced Guide'!$P$18) -> 0 | V27: =Table3[[#This Row],[Content Per Week]]/$P$17 -> 05:21:00
B28: 13 | C28: =IFERROR(IF(V28=0,"",COUNTIF('Pacing Guide'!$I$6:$I$84,1)),"") -> 7 | D28: =IF(SUMIF('Pacing Guide'!I$6:I$85,B28,'Pacing Guide'!K$6:K$85)=0,"",SUMIF('Pacing Guide'!I$6:I$85,B28,'Pacing Guide'!K$6:K$85)) -> 310 | E28: 310 | F28: =IFERROR(IF(Table3[[#This Row],[Class Activity Time]]=0,"",N28-E28),"") -> -310 | H28: =C28*'Advanced Guide'!#REF! ->  | I28: =Table3[[#This Row],[Sections Per Week]]*$G$10 -> 0 | J28: =$G$11*Table3[[#This Row],[Sections Per Week]] -> 0 | K28: =Table3[[#This Row],[Sections Per Week]]*$G$12 -> 0 | L28: =Table3[[#This Row],[Sections Per Week]]*$G$9 -> 0 | M28: ='Advanced Guide'!$C$13*Table3[[#This Row],[Sections Per Week]] -> 0 | N28: =IF(Table3[[#This Row],[Content Per Week]]=0,"",'Pacing Guide'!$A$32*'Advanced Guide'!$P$18) -> 0 | V28: =Table3[[#This Row],[Content Per Week]]/$P$17 -> 05:10:00
B29: 14 | C29: =IFERROR(IF(V29=0,"",COUNTIF('Pacing Guide'!$I$6:$I$84,1)),"") -> 7 | D29: =IF(SUMIF('Pacing Guide'!I$6:I$85,B29,'Pacing Guide'!K$6:K$85)=0,"",SUMIF('Pacing Guide'!I$6:I$85,B29,'Pacing Guide'!K$6:K$85)) -> 441 | E29: 441 | F29: =IFERROR(IF(Table3[[#This Row],[Class Activity Time]]=0,"",N29-E29),"") -> -441 | H29: =C29*'Advanced Guide'!#REF! ->  | I29: =Table3[[#This Row],[Sections Per Week]]*$G$10 -> 0 | J29: =$G$11*Table3[[#This Row],[Sections Per Week]] -> 0 | K29: =Table3[[#This Row],[Sections Per Week]]*$G$12 -> 0 | L29: =Table3[[#This Row],[Sections Per Week]]*$G$9 -> 0 | M29: ='Advanced Guide'!$C$13*Table3[[#This Row],[Sections Per Week]] -> 0 | N29: =IF(Table3[[#This Row],[Content Per Week]]=0,"",'Pacing Guide'!$A$32*'Advanced Guide'!$P$18) -> 0 | V29: =Table3[[#This Row],[Content Per Week]]/$P$17 -> 07:21:00
B30: 15 | C30: =IFERROR(IF(V30=0,"",COUNTIF('Pacing Guide'!$I$6:$I$84,1)),"") -> 7 | D30: =IF(SUMIF('Pacing Guide'!I$6:I$85,B30,'Pacing Guide'!K$6:K$85)=0,"",SUMIF('Pacing Guide'!I$6:I$85,B30,'Pacing Guide'!K$6:K$85)) -> 110 | E30: 110 | F30: =IFERROR(IF(Table3[[#This Row],[Class Activity Time]]=0,"",N30-E30),"") -> -110 | H30: =C30*'Advanced Guide'!#REF! ->  | I30: =Table3[[#This Row],[Sections Per Week]]*$G$10 -> 0 | J30: =$G$11*Table3[[#This Row],[Sections Per Week]] -> 0 | K30: =Table3[[#This Row],[Sections Per Week]]*$G$12 -> 0 | L30: =Table3[[#This Row],[Sections Per Week]]*$G$9 -> 0 | M30: ='Advanced Guide'!$C$13*Table3[[#This Row],[Sections Per Week]] -> 0 | N30: =IF(Table3[[#This Row],[Content Per Week]]=0,"",'Pacing Guide'!$A$32*'Advanced Guide'!$P$18) -> 0 | V30: =Table3[[#This Row],[Content Per Week]]/$P$17 -> 01:50:00
B31: 16 | C31: =IFERROR(IF(V31=0,"",COUNTIF('Pacing Guide'!$I$6:$I$84,1)),"") -> 7 | D31: =IF(SUMIF('Pacing Guide'!I$6:I$85,B31,'Pacing Guide'!K$6:K$85)=0,"",SUMIF('Pacing Guide'!I$6:I$85,B31,'Pacing Guide'!K$6:K$85)) -> 344 | E31: 344 | F31: =IFERROR(IF(Table3[[#This Row],[Class Activity Time]]=0,"",N31-E31),"") -> -344 | H31: =C31*'Advanced Guide'!#REF! ->  | I31: =Table3[[#This Row],[Sections Per Week]]*$G$10 -> 0 | J31: =$G$11*Table3[[#This Row],[Sections Per Week]] -> 0 | K31: =Table3[[#This Row],[Sections Per Week]]*$G$12 -> 0 | L31: =Table3[[#This Row],[Sections Per Week]]*$G$9 -> 0 | M31: ='Advanced Guide'!$C$13*Table3[[#This Row],[Sections Per Week]] -> 0 | N31: =IF(Table3[[#This Row],[Content Per Week]]=0,"",'Pacing Guide'!$A$32*'Advanced Guide'!$P$18) -> 0 | V31: =Table3[[#This Row],[Content Per Week]]/$P$17 -> 05:44:00
B32: 17 | C32: =IFERROR(IF(V32=0,"",COUNTIF('Pacing Guide'!$I$6:$I$84,1)),"") -> 7 | D32: =IF(SUMIF('Pacing Guide'!I$6:I$85,B32,'Pacing Guide'!K$6:K$85)=0,"",SUMIF('Pacing Guide'!I$6:I$85,B32,'Pacing Guide'!K$6:K$85)) -> 279 | E32: 279 | F32: =IFERROR(IF(Table3[[#This Row],[Class Activity Time]]=0,"",N32-E32),"") -> -279 | H32: =C32*'Advanced Guide'!#REF! ->  | I32: =Table3[[#This Row],[Sections Per Week]]*$G$10 -> 0 | J32: =$G$11*Table3[[#This Row],[Sections Per Week]] -> 0 | K32: =Table3[[#This Row],[Sections Per Week]]*$G$12 -> 0 | L32: =Table3[[#This Row],[Sections Per Week]]*$G$9 -> 0 | M32: ='Advanced Guide'!$C$13*Table3[[#This Row],[Sections Per Week]] -> 0 | N32: =IF(Table3[[#This Row],[Content Per Week]]=0,"",'Pacing Guide'!$A$32*'Advanced Guide'!$P$18) -> 0 | V32: =Table3[[#This Row],[Content Per Week]]/$P$17 -> 04:39:00
B33: 18 | C33: =IFERROR(IF(V33=0,"",COUNTIF('Pacing Guide'!$I$6:$I$84,1)),"") -> 7 | D33: =IF(SUMIF('Pacing Guide'!I$6:I$85,B33,'Pacing Guide'!K$6:K$85)=0,"",SUMIF('Pacing Guide'!I$6:I$85,B33,'Pacing Guide'!K$6:K$85)) -> 315 | E33: 315 | F33: =IFERROR(IF(Table3[[#This Row],[Class Activity Time]]=0,"",N33-E33),"") -> -315 | H33: =C33*'Advanced Guide'!#REF! ->  | I33: =Table3[[#This Row],[Sections Per Week]]*$G$10 -> 0 | J33: =$G$11*Table3[[#This Row],[Sections Per Week]] -> 0 | K33: =Table3[[#This Row],[Sections Per Week]]*$G$12 -> 0 | L33: =Table3[[#This Row],[Sections Per Week]]*$G$9 -> 0 | M33: ='Advanced Guide'!$C$13*Table3[[#This Row],[Sections Per Week]] -> 0 | N33: =IF(Table3[[#This Row],[Content Per Week]]=0,"",'Pacing Guide'!$A$32*'Advanced Guide'!$P$18) -> 0 | V33: =Table3[[#This Row],[Content Per Week]]/$P$17 -> 05:15:00
B34: 19 | C34: =IFERROR(IF(V34=0,"",COUNTIF('Pacing Guide'!$I$6:$I$84,1)),"") -> 7 | D34: =IF(SUMIF('Pacing Guide'!I$6:I$85,B34,'Pacing Guide'!K$6:K$85)=0,"",SUMIF('Pacing Guide'!I$6:I$85,B34,'Pacing Guide'!K$6:K$85)) -> 5759 | E34: =IFERROR(D34+M34+I34+J34+K34+L34,"") -> 5759 | F34: =IFERROR(IF(Table3[[#This Row],[Class Activity Time]]=0,"",N34-E34),"") -> -5759 | H34: =C34*'Advanced Guide'!#REF! ->  | I34: =Table3[[#This Row],[Sections Per Week]]*$G$10 -> 0 | J34: =$G$11*Table3[[#This Row],[Sections Per Week]] -> 0 | K34: =Table3[[#This Row],[Sections Per Week]]*$G$12 -> 0 | L34: =Table3[[#This Row],[Sections Per Week]]*$G$9 -> 0 | M34: ='Advanced Guide'!$C$13*Table3[[#This Row],[Sections Per Week]] -> 0 | N34: =IF(Table3[[#This Row],[Content Per Week]]=0,"",'Pacing Guide'!$A$32*'Advanced Guide'!$P$18) -> 0 | V34: =Table3[[#This Row],[Content Per Week]]/$P$17 -> 3.999305556
B35: 20 | C35: =IFERROR(IF(V35=0,"",COUNTIF('Pacing Guide'!$I$6:$I$84,1)),"") ->  | D35: =IF(SUMIF('Pacing Guide'!I$6:I$85,B35,'Pacing Guide'!K$6:K$85)=0,"",SUMIF('Pacing Guide'!I$6:I$85,B35,'Pacing Guide'!K$6:K$85)) ->  | E35: =IFERROR(D35+M35+I35+J35+K35+L35,"") ->  | F35: =IFERROR(IF(Table3[[#This Row],[Class Activity Time]]=0,"",N35-E35),"") ->  | H35: =C35*'Advanced Guide'!#REF! ->  | I35: =Table3[[#This Row],[Sections Per Week]]*$G$10 ->  | J35: =$G$11*Table3[[#This Row],[Sections Per Week]] ->  | K35: =Table3[[#This Row],[Sections Per Week]]*$G$12 ->  | L35: =Table3[[#This Row],[Sections Per Week]]*$G$9 ->  | M35: ='Advanced Guide'!$C$13*Table3[[#This Row],[Sections Per Week]] ->  | N35: =IF(Table3[[#This Row],[Content Per Week]]=0,"",'Pacing Guide'!$A$32*'Advanced Guide'!$P$18) -> 0 | V35: =Table3[[#This Row],[Content Per Week]]/$P$17 -> 
B36: 21 | C36: =IFERROR(IF(V36=0,"",COUNTIF('Pacing Guide'!$I$6:$I$84,1)),"") ->  | D36: =IF(SUMIF('Pacing Guide'!I$6:I$85,B36,'Pacing Guide'!K$6:K$85)=0,"",SUMIF('Pacing Guide'!I$6:I$85,B36,'Pacing Guide'!K$6:K$85)) ->  | F36: =IFERROR(IF(Table3[[#This Row],[Class Activity Time]]=0,"",N36-E36),"") ->  | H36: =C36*'Advanced Guide'!#REF! ->  | I36: =Table3[[#This Row],[Sections Per Week]]*$G$10 ->  | J36: =$G$11*Table3[[#This Row],[Sections Per Week]] ->  | K36: =Table3[[#This Row],[Sections Per Week]]*$G$12 ->  | L36: =Table3[[#This Row],[Sections Per Week]]*$G$9 ->  | M36: ='Advanced Guide'!$C$13*Table3[[#This Row],[Sections Per Week]] ->  | N36: =IF(Table3[[#This Row],[Content Per Week]]=0,"",'Pacing Guide'!$A$32*'Advanced Guide'!$P$18) -> 0 | V36: =Table3[[#This Row],[Content Per Week]]/$P$17 -> 
B37: 22 | C37: =IFERROR(IF(V37=0,"",COUNTIF('Pacing Guide'!$I$6:$I$84,1)),"") ->  | D37: =IF(SUMIF('Pacing Guide'!I$6:I$85,B37,'Pacing Guide'!K$6:K$85)=0,"",SUMIF('Pacing Guide'!I$6:I$85,B37,'Pacing Guide'!K$6:K$85)) ->  | F37: =IFERROR(IF(Table3[[#This Row],[Class Activity Time]]=0,"",N37-E37),"") ->  | H37: =C37*'Advanced Guide'!#REF! ->  | I37: =Table3[[#This Row],[Sections Per Week]]*$G$10 ->  | J37: =$G$11*Table3[[#This Row],[Sections Per Week]] ->  | K37: =Table3[[#This Row],[Sections Per Week]]*$G$12 ->  | L37: =Table3[[#This Row],[Sections Per Week]]*$G$9 ->  | M37: ='Advanced Guide'!$C$13*Table3[[#This Row],[Sections Per Week]] ->  | N37: =IF(Table3[[#This Row],[Content Per Week]]=0,"",'Pacing Guide'!$A$32*'Advanced Guide'!$P$18) -> 0 | V37: =Table3[[#This Row],[Content Per Week]]/$P$17 -> 
B38: 23 | C38: =IFERROR(IF(V38=0,"",COUNTIF('Pacing Guide'!$I$6:$I$84,1)),"") ->  | D38: =IF(SUMIF('Pacing Guide'!I$6:I$85,B38,'Pacing Guide'!K$6:K$85)=0,"",SUMIF('Pacing Guide'!I$6:I$85,B38,'Pacing Guide'!K$6:K$85)) ->  | F38: =IFERROR(IF(Table3[[#This Row],[Class Activity Time]]=0,"",N38-E38),"") ->  | H38: =C38*'Advanced Guide'!#REF! ->  | I38: =Table3[[#This Row],[Sections Per Week]]*$G$10 ->  | J38: =$G$11*Table3[[#This Row],[Sections Per Week]] ->  | K38: =Table3[[#This Row],[Sections Per Week]]*$G$12 ->  | L38: =Table3[[#This Row],[Sections Per Week]]*$G$9 ->  | M38: ='Advanced Guide'!$C$13*Table3[[#This Row],[Sections Per Week]] ->  | N38: =IF(Table3[[#This Row],[Content Per Week]]=0,"",'Pacing Guide'!$A$32*'Advanced Guide'!$P$18) -> 0 | V38: =Table3[[#This Row],[Content Per Week]]/$P$17 -> 
B39: 24 | C39: =IFERROR(IF(V39=0,"",COUNTIF('Pacing Guide'!$I$6:$I$84,1)),"") ->  | D39: =IF(SUMIF('Pacing Guide'!I$6:I$85,B39,'Pacing Guide'!K$6:K$85)=0,"",SUMIF('Pacing Guide'!I$6:I$85,B39,'Pacing Guide'!K$6:K$85)) ->  | F39: =IFERROR(IF(Table3[[#This Row],[Class Activity Time]]=0,"",N39-E39),"") ->  | H39: =C39*'Advanced Guide'!#REF! ->  | I39: =Table3[[#This Row],[Sections Per Week]]*$G$10 ->  | J39: =$G$11*Table3[[#This Row],[Sections Per Week]] ->  | K39: =Table3[[#This Row],[Sections Per Week]]*$G$12 ->  | L39: =Table3[[#This Row],[Sections Per Week]]*$G$9 ->  | M39: ='Advanced Guide'!$C$13*Table3[[#This Row],[Sections Per Week]] ->  | N39: =IF(Table3[[#This Row],[Content Per Week]]=0,"",'Pacing Guide'!$A$32*'Advanced Guide'!$P$18) -> 0 | V39: =Table3[[#This Row],[Content Per Week]]/$P$17 -> 
B40: 25 | C40: =IFERROR(IF(V40=0,"",COUNTIF('Pacing Guide'!$I$6:$I$84,1)),"") ->  | D40: =IF(SUMIF('Pacing Guide'!I$6:I$85,B40,'Pacing Guide'!K$6:K$85)=0,"",SUMIF('Pacing Guide'!I$6:I$85,B40,'Pacing Guide'!K$6:K$85)) ->  | F40: =IFERROR(IF(Table3[[#This Row],[Class Activity Time]]=0,"",N40-E40),"") ->  | H40: =C40*'Advanced Guide'!#REF! ->  | I40: =Table3[[#This Row],[Sections Per Week]]*$G$10 ->  | J40: =$G$11*Table3[[#This Row],[Sections Per Week]] ->  | K40: =Table3[[#This Row],[Sections Per Week]]*$G$12 ->  | L40: =Table3[[#This Row],[Sections Per Week]]*$G$9 ->  | M40: ='Advanced Guide'!$C$13*Table3[[#This Row],[Sections Per Week]] ->  | N40: =IF(Table3[[#This Row],[Content Per Week]]=0,"",'Pacing Guide'!$A$32*'Advanced Guide'!$P$18) -> 0 | V40: =Table3[[#This Row],[Content Per Week]]/$P$17 -> 
B41: 26 | C41: =IFERROR(IF(V41=0,"",COUNTIF('Pacing Guide'!$I$6:$I$84,1)),"") ->  | D41: =IF(SUMIF('Pacing Guide'!I$6:I$85,B41,'Pacing Guide'!K$6:K$85)=0,"",SUMIF('Pacing Guide'!I$6:I$85,B41,'Pacing Guide'!K$6:K$85)) ->  | F41: =IFERROR(IF(Table3[[#This Row],[Class Activity Time]]=0,"",N41-E41),"") ->  | H41: =C41*'Advanced Guide'!#REF! ->  | I41: =Table3[[#This Row],[Sections Per Week]]*$G$10 ->  | J41: =$G$11*Table3[[#This Row],[Sections Per Week]] ->  | K41: =Table3[[#This Row],[Sections Per Week]]*$G$12 ->  | L41: =Table3[[#This Row],[Sections Per Week]]*$G$9 ->  | M41: ='Advanced Guide'!$C$13*Table3[[#This Row],[Sections Per Week]] ->  | N41: =IF(Table3[[#This Row],[Content Per Week]]=0,"",'Pacing Guide'!$A$32*'Advanced Guide'!$P$18) -> 0 | V41: =Table3[[#This Row],[Content Per Week]]/$P$17 -> 
B42: 27 | C42: =IFERROR(IF(V42=0,"",COUNTIF('Pacing Guide'!$I$6:$I$84,1)),"") ->  | D42: =IF(SUMIF('Pacing Guide'!I$6:I$85,B42,'Pacing Guide'!K$6:K$85)=0,"",SUMIF('Pacing Guide'!I$6:I$85,B42,'Pacing Guide'!K$6:K$85)) ->  | F42: =IFERROR(IF(Table3[[#This Row],[Class Activity Time]]=0,"",N42-E42),"") ->  | H42: =C42*'Advanced Guide'!#REF! ->  | I42: =Table3[[#This Row],[Sections Per Week]]*$G$10 ->  | J42: =$G$11*Table3[[#This Row],[Sections Per Week]] ->  | K42: =Table3[[#This Row],[Sections Per Week]]*$G$12 ->  | L42: =Table3[[#This Row],[Sections Per Week]]*$G$9 ->  | M42: ='Advanced Guide'!$C$13*Table3[[#This Row],[Sections Per Week]] ->  | N42: =IF(Table3[[#This Row],[Content Per Week]]=0,"",'Pacing Guide'!$A$32*'Advanced Guide'!$P$18) -> 0 | V42: =Table3[[#This Row],[Content Per Week]]/$P$17 -> 
B43: 28 | C43: =IFERROR(IF(V43=0,"",COUNTIF('Pacing Guide'!$I$6:$I$84,1)),"") ->  | D43: =IF(SUMIF('Pacing Guide'!I$6:I$85,B43,'Pacing Guide'!K$6:K$85)=0,"",SUMIF('Pacing Guide'!I$6:I$85,B43,'Pacing Guide'!K$6:K$85)) ->  | F43: =IFERROR(IF(Table3[[#This Row],[Class Activity Time]]=0,"",N43-E43),"") ->  | H43: =C43*'Advanced Guide'!#REF! ->  | I43: =Table3[[#This Row],[Sections Per Week]]*$G$10 ->  | J43: =$G$11*Table3[[#This Row],[Sections Per Week]] ->  | K43: =Table3[[#This Row],[Sections Per Week]]*$G$12 ->  | L43: =Table3[[#This Row],[Sections Per Week]]*$G$9 ->  | M43: ='Advanced Guide'!$C$13*Table3[[#This Row],[Sections Per Week]] ->  | N43: =IF(Table3[[#This Row],[Content Per Week]]=0,"",'Pacing Guide'!$A$32*'Advanced Guide'!$P$18) -> 0 | V43: =Table3[[#This Row],[Content Per Week]]/$P$17 -> 
B44: 29 | C44: =IFERROR(IF(V44=0,"",COUNTIF('Pacing Guide'!$I$6:$I$84,1)),"") ->  | D44: =IF(SUMIF('Pacing Guide'!I$6:I$85,B44,'Pacing Guide'!K$6:K$85)=0,"",SUMIF('Pacing Guide'!I$6:I$85,B44,'Pacing Guide'!K$6:K$85)) ->  | F44: =IFERROR(IF(Table3[[#This Row],[Class Activity Time]]=0,"",N44-E44),"") ->  | H44: =C44*'Advanced Guide'!#REF! ->  | I44: =Table3[[#This Row],[Sections Per Week]]*$G$10 ->  | J44: =$G$11*Table3[[#This Row],[Sections Per Week]] ->  | K44: =Table3[[#This Row],[Sections Per Week]]*$G$12 ->  | L44: =Table3[[#This Row],[Sections Per Week]]*$G$9 ->  | M44: ='Advanced Guide'!$C$13*Table3[[#This Row],[Sections Per Week]] ->  | N44: =IF(Table3[[#This Row],[Content Per Week]]=0,"",'Pacing Guide'!$A$32*'Advanced Guide'!$P$18) -> 0 | V44: =Table3[[#This Row],[Content Per Week]]/$P$17 -> 
B45: 30 | C45: =IFERROR(IF(V45=0,"",COUNTIF('Pacing Guide'!$I$6:$I$84,1)),"") ->  | D45: =IF(SUMIF('Pacing Guide'!I$6:I$85,B45,'Pacing Guide'!K$6:K$85)=0,"",SUMIF('Pacing Guide'!I$6:I$85,B45,'Pacing Guide'!K$6:K$85)) ->  | F45: =IFERROR(IF(Table3[[#This Row],[Class Activity Time]]=0,"",N45-E45),"") ->  | H45: =C45*'Advanced Guide'!#REF! ->  | I45: =Table3[[#This Row],[Sections Per Week]]*$G$10 ->  | J45: =$G$11*Table3[[#This Row],[Sections Per Week]] ->  | K45: =Table3[[#This Row],[Sections Per Week]]*$G$12 ->  | L45: =Table3[[#This Row],[Sections Per Week]]*$G$9 ->  | M45: ='Advanced Guide'!$C$13*Table3[[#This Row],[Sections Per Week]] ->  | N45: =IF(Table3[[#This Row],[Content Per Week]]=0,"",'Pacing Guide'!$A$32*'Advanced Guide'!$P$18) -> 0 | V45: =Table3[[#This Row],[Content Per Week]]/$P$17 -> 
B46: 31 | C46: =IFERROR(IF(V46=0,"",COUNTIF('Pacing Guide'!$I$6:$I$84,1)),"") ->  | D46: =IF(SUMIF('Pacing Guide'!I$6:I$85,B46,'Pacing Guide'!K$6:K$85)=0,"",SUMIF('Pacing Guide'!I$6:I$85,B46,'Pacing Guide'!K$6:K$85)) ->  | F46: =IFERROR(IF(Table3[[#This Row],[Class Activity Time]]=0,"",N46-E46),"") ->  | H46: =C46*'Advanced Guide'!#REF! ->  | I46: =Table3[[#This Row],[Sections Per Week]]*$G$10 ->  | J46: =$G$11*Table3[[#This Row],[Sections Per Week]] ->  | K46: =Table3[[#This Row],[Sections Per Week]]*$G$12 ->  | L46: =Table3[[#This Row],[Sections Per Week]]*$G$9 ->  | M46: ='Advanced Guide'!$C$13*Table3[[#This Row],[Sections Per Week]] ->  | N46: =IF(Table3[[#This Row],[Content Per Week]]=0,"",'Pacing Guide'!$A$32*'Advanced Guide'!$P$18) -> 0 | V46: =Table3[[#This Row],[Content Per Week]]/$P$17 -> 
B47: 32 | C47: =IFERROR(IF(V47=0,"",COUNTIF('Pacing Guide'!$I$6:$I$84,1)),"") ->  | D47: =IF(SUMIF('Pacing Guide'!I$6:I$85,B47,'Pacing Guide'!K$6:K$85)=0,"",SUMIF('Pacing Guide'!I$6:I$85,B47,'Pacing Guide'!K$6:K$85)) ->  | F47: =IFERROR(IF(Table3[[#This Row],[Class Activity Time]]=0,"",N47-E47),"") ->  | H47: =C47*'Advanced Guide'!#REF! ->  | I47: =Table3[[#This Row],[Sections Per Week]]*$G$10 ->  | J47: =$G$11*Table3[[#This Row],[Sections Per Week]] ->  | K47: =Table3[[#This Row],[Sections Per Week]]*$G$12 ->  | L47: =Table3[[#This Row],[Sections Per Week]]*$G$9 ->  | M47: ='Advanced Guide'!$C$13*Table3[[#This Row],[Sections Per Week]] ->  | N47: =IF(Table3[[#This Row],[Content Per Week]]=0,"",'Pacing Guide'!$A$32*'Advanced Guide'!$P$18) -> 0 | V47: =Table3[[#This Row],[Content Per Week]]/$P$17 -> 
B48: 33 | C48: =IFERROR(IF(V48=0,"",COUNTIF('Pacing Guide'!$I$6:$I$84,1)),"") ->  | D48: =IF(SUMIF('Pacing Guide'!I$6:I$85,B48,'Pacing Guide'!K$6:K$85)=0,"",SUMIF('Pacing Guide'!I$6:I$85,B48,'Pacing Guide'!K$6:K$85)) ->  | F48: =IFERROR(IF(Table3[[#This Row],[Class Activity Time]]=0,"",N48-E48),"") ->  | H48: =C48*'Advanced Guide'!#REF! ->  | I48: =Table3[[#This Row],[Sections Per Week]]*$G$10 ->  | J48: =$G$11*Table3[[#This Row],[Sections Per Week]] ->  | K48: =Table3[[#This Row],[Sections Per Week]]*$G$12 ->  | L48: =Table3[[#This Row],[Sections Per Week]]*$G$9 ->  | M48: ='Advanced Guide'!$C$13*Table3[[#This Row],[Sections Per Week]] ->  | N48: =IF(Table3[[#This Row],[Content Per Week]]=0,"",'Pacing Guide'!$A$32*'Advanced Guide'!$P$18) -> 0 | V48: =Table3[[#This Row],[Content Per Week]]/$P$17 -> 
B49: 34 | C49: =IFERROR(IF(V49=0,"",COUNTIF('Pacing Guide'!$I$6:$I$84,1)),"") ->  | D49: =IF(SUMIF('Pacing Guide'!I$6:I$85,B49,'Pacing Guide'!K$6:K$85)=0,"",SUMIF('Pacing Guide'!I$6:I$85,B49,'Pacing Guide'!K$6:K$85)) ->  | F49: =IFERROR(IF(Table3[[#This Row],[Class Activity Time]]=0,"",N49-E49),"") ->  | H49: =C49*'Advanced Guide'!#REF! ->  | I49: =Table3[[#This Row],[Sections Per Week]]*$G$10 ->  | J49: =$G$11*Table3[[#This Row],[Sections Per Week]] ->  | K49: =Table3[[#This Row],[Sections Per Week]]*$G$12 ->  | L49: =Table3[[#This Row],[Sections Per Week]]*$G$9 ->  | M49: ='Advanced Guide'!$C$13*Table3[[#This Row],[Sections Per Week]] ->  | N49: =IF(Table3[[#This Row],[Content Per Week]]=0,"",'Pacing Guide'!$A$32*'Advanced Guide'!$P$18) -> 0 | V49: =Table3[[#This Row],[Content Per Week]]/$P$17 -> 
B50: 35 | C50: =IFERROR(IF(V50=0,"",COUNTIF('Pacing Guide'!$I$6:$I$84,1)),"") ->  | D50: =IF(SUMIF('Pacing Guide'!I$6:I$85,B50,'Pacing Guide'!K$6:K$85)=0,"",SUMIF('Pacing Guide'!I$6:I$85,B50,'Pacing Guide'!K$6:K$85)) ->  | F50: =IFERROR(IF(Table3[[#This Row],[Class Activity Time]]=0,"",N50-E50),"") ->  | H50: =C50*'Advanced Guide'!#REF! ->  | I50: =Table3[[#This Row],[Sections Per Week]]*$G$10 ->  | J50: =$G$11*Table3[[#This Row],[Sections Per Week]] ->  | K50: =Table3[[#This Row],[Sections Per Week]]*$G$12 ->  | L50: =Table3[[#This Row],[Sections Per Week]]*$G$9 ->  | M50: ='Advanced Guide'!$C$13*Table3[[#This Row],[Sections Per Week]] ->  | N50: =IF(Table3[[#This Row],[Content Per Week]]=0,"",'Pacing Guide'!$A$32*'Advanced Guide'!$P$18) -> 0 | V50: =Table3[[#This Row],[Content Per Week]]/$P$17 -> 
B51: 36 | C51: =IFERROR(IF(V51=0,"",COUNTIF('Pacing Guide'!$I$6:$I$84,1)),"") ->  | D51: =IF(SUMIF('Pacing Guide'!I$6:I$85,B51,'Pacing Guide'!K$6:K$85)=0,"",SUMIF('Pacing Guide'!I$6:I$85,B51,'Pacing Guide'!K$6:K$85)) ->  | F51: =IFERROR(IF(Table3[[#This Row],[Class Activity Time]]=0,"",N51-E51),"") ->  | H51: =C51*'Advanced Guide'!#REF! ->  | I51: =Table3[[#This Row],[Sections Per Week]]*$G$10 ->  | J51: =$G$11*Table3[[#This Row],[Sections Per Week]] ->  | K51: =Table3[[#This Row],[Sections Per Week]]*$G$12 ->  | L51: =Table3[[#This Row],[Sections Per Week]]*$G$9 ->  | M51: ='Advanced Guide'!$C$13*Table3[[#This Row],[Sections Per Week]] ->  | N51: =IF(Table3[[#This Row],[Content Per Week]]=0,"",'Pacing Guide'!$A$32*'Advanced Guide'!$P$18) -> 0 | V51: =Table3[[#This Row],[Content Per Week]]/$P$17 -> 
B52: 37 | C52: =IFERROR(IF(V52=0,"",COUNTIF('Pacing Guide'!$I$6:$I$84,1)),"") ->  | D52: =IF(SUMIF('Pacing Guide'!I$6:I$85,B52,'Pacing Guide'!K$6:K$85)=0,"",SUMIF('Pacing Guide'!I$6:I$85,B52,'Pacing Guide'!K$6:K$85)) ->  | F52: =IFERROR(IF(Table3[[#This Row],[Class Activity Time]]=0,"",N52-E52),"") ->  | H52: =C52*'Advanced Guide'!#REF! ->  | I52: =Table3[[#This Row],[Sections Per Week]]*$G$10 ->  | J52: =$G$11*Table3[[#This Row],[Sections Per Week]] ->  | K52: =Table3[[#This Row],[Sections Per Week]]*$G$12 ->  | L52: =Table3[[#This Row],[Sections Per Week]]*$G$9 ->  | M52: ='Advanced Guide'!$C$13*Table3[[#This Row],[Sections Per Week]] ->  | N52: =IF(Table3[[#This Row],[Content Per Week]]=0,"",'Pacing Guide'!$A$32*'Advanced Guide'!$P$18) -> 0 | V52: =Table3[[#This Row],[Content Per Week]]/$P$17 -> 
B53: 38 | C53: =IFERROR(IF(V53=0,"",COUNTIF('Pacing Guide'!$I$6:$I$84,1)),"") ->  | D53: =IF(SUMIF('Pacing Guide'!I$6:I$85,B53,'Pacing Guide'!K$6:K$85)=0,"",SUMIF('Pacing Guide'!I$6:I$85,B53,'Pacing Guide'!K$6:K$85)) ->  | F53: =IFERROR(IF(Table3[[#This Row],[Class Activity Time]]=0,"",N53-E53),"") ->  | H53: =C53*'Advanced Guide'!#REF! ->  | I53: =Table3[[#This Row],[Sections Per Week]]*$G$10 ->  | J53: =$G$11*Table3[[#This Row],[Sections Per Week]] ->  | K53: =Table3[[#This Row],[Sections Per Week]]*$G$12 ->  | L53: =Table3[[#This Row],[Sections Per Week]]*$G$9 ->  | M53: ='Advanced Guide'!$C$13*Table3[[#This Row],[Sections Per Week]] ->  | N53: =IF(Table3[[#This Row],[Content Per Week]]=0,"",'Pacing Guide'!$A$32*'Advanced Guide'!$P$18) -> 0 | V53: =Table3[[#This Row],[Content Per Week]]/$P$17 -> 
B54: 39 | C54: =IFERROR(IF(V54=0,"",COUNTIF('Pacing Guide'!$I$6:$I$84,1)),"") ->  | D54: =IF(SUMIF('Pacing Guide'!I$6:I$85,B54,'Pacing Guide'!K$6:K$85)=0,"",SUMIF('Pacing Guide'!I$6:I$85,B54,'Pacing Guide'!K$6:K$85)) ->  | F54: =IFERROR(IF(Table3[[#This Row],[Class Activity Time]]=0,"",N54-E54),"") ->  | H54: =C54*'Advanced Guide'!#REF! ->  | I54: =Table3[[#This Row],[Sections Per Week]]*$G$10 ->  | J54: =$G$11*Table3[[#This Row],[Sections Per Week]] ->  | K54: =Table3[[#This Row],[Sections Per Week]]*$G$12 ->  | L54: =Table3[[#This Row],[Sections Per Week]]*$G$9 ->  | M54: ='Advanced Guide'!$C$13*Table3[[#This Row],[Sections Per Week]] ->  | N54: =IF(Table3[[#This Row],[Content Per Week]]=0,"",'Pacing Guide'!$A$32*'Advanced Guide'!$P$18) -> 0 | V54: =Table3[[#This Row],[Content Per Week]]/$P$17 -> 
B55: 40 | C55: =IFERROR(IF(V55=0,"",COUNTIF('Pacing Guide'!$I$6:$I$84,1)),"") ->  | D55: =IF(SUMIF('Pacing Guide'!I$6:I$85,B55,'Pacing Guide'!K$6:K$85)=0,"",SUMIF('Pacing Guide'!I$6:I$85,B55,'Pacing Guide'!K$6:K$85)) ->  | F55: =IFERROR(IF(Table3[[#This Row],[Class Activity Time]]=0,"",N55-E55),"") ->  | H55: =C55*'Advanced Guide'!#REF! ->  | I55: =Table3[[#This Row],[Sections Per Week]]*$G$10 ->  | J55: =$G$11*Table3[[#This Row],[Sections Per Week]] ->  | K55: =Table3[[#This Row],[Sections Per Week]]*$G$12 ->  | L55: =Table3[[#This Row],[Sections Per Week]]*$G$9 ->  | M55: ='Advanced Guide'!$C$13*Table3[[#This Row],[Sections Per Week]] ->  | N55: =IF(Table3[[#This Row],[Content Per Week]]=0,"",'Pacing Guide'!$A$32*'Advanced Guide'!$P$18) -> 0 | V55: =Table3[[#This Row],[Content Per Week]]/$P$17 -> 

Sheet Weekly Guide (hidden)
B2: Step 7: Refresh your Weekly Guide Any items and minute changes made in Steps 3 & 4 will re-adjust your weekly guide. 1 ) Click cell C3 (Weekly Guide) below. 2) At the top of the ribbon, click Pivotable Analyze (see image at right) 3) Click Refresh.

Sheet Sheet2 (hidden)
B5: Totals
A6: Total Minutes of resources: | B6: =GETPIVOTDATA("Time",'Pacing Guide'!$K$5) -> 5759
A7: Weekly Minutes to cover content: | B7: =(GETPIVOTDATA("Time",'Pacing Guide'!$K$5))/'Pacing Guide'!A23 -> 319.9444444

Sheet Changing times. (hidden)
A1: Chapter | B1: Section | C1: Time | D1: Lectures | E1: Live Projects | F1: Practice Tests & MOS Cert | G1: Your Own Projects | H1: Videos | I1: Skills | J1: Challenge | K1: Applied | L1: Labs | M1: Text | N1: Exams
A2: Online Essentials | B2: 1.1: The Information Age | C2: =SUM(DesktopProPlusV5[[#This Row],[Live Projects]:[Exams]]) -> 78 | D2: ='Advanced Guide'!$C$13 -> 0 | H2: 33 | L2: 0 | M2: 45 | Q2: Yes
A3: Online Essentials | B3: 1.2: The Internet and Social Media | C3: =SUM(DesktopProPlusV5[[#This Row],[Live Projects]:[Exams]]) -> 91 | D3: ='Advanced Guide'!$C$13 -> 0 | H3: 26 | I3: 20 | M3: 45 | Q3: No
A4: Online Essentials | B4: 1.3: Digital Communication | C4: =SUM(DesktopProPlusV5[[#This Row],[Live Projects]:[Exams]]) -> 63 | D4: ='Advanced Guide'!$C$13 -> 0 | H4: 18 | I4: 20 | M4: 25
A5: Online Essentials | B5: 1.4: Online Safety and Security | C5: =SUM(DesktopProPlusV5[[#This Row],[Live Projects]:[Exams]]) -> 133 | D5: ='Advanced Guide'!$C$13 -> 0 | H5: 38 | I5: 70 | M5: 25
A6: Online Essentials | B6: 1.5: Evaluating Online Information | C6: =SUM(DesktopProPlusV5[[#This Row],[Live Projects]:[Exams]]) -> 35 | D6: ='Advanced Guide'!$C$13 -> 0 | H6: 15 | L6: 0 | M6: 20
A7: Online Essentials | B7: 1.6: Exam: Online Essentials | C7: =SUM(DesktopProPlusV5[[#This Row],[Live Projects]:[Exams]]) -> 60 | N7: 60
A8: Computer Essentials | B8: 2.1: Computer Hardware | C8: =SUM(DesktopProPlusV5[[#This Row],[Live Projects]:[Exams]]) -> 119 | D8: ='Advanced Guide'!$C$13 -> 0 | H8: 29 | I8: 60 | M8: 30
A9: Computer Essentials | B9: 2.2: System Software | C9: =SUM(DesktopProPlusV5[[#This Row],[Live Projects]:[Exams]]) -> 110 | D9: ='Advanced Guide'!$C$13 -> 0 | H9: 20 | I9: 60 | M9: 30
A10: Computer Essentials | B10: 2.3: File Management | C10: =SUM(DesktopProPlusV5[[#This Row],[Live Projects]:[Exams]]) -> 99 | D10: ='Advanced Guide'!$C$13 -> 0 | H10: 19 | I10: 60 | M10: 20
A11: Computer Essentials | B11: 2.4: Application Software | C11: =SUM(DesktopProPlusV5[[#This Row],[Live Projects]:[Exams]]) -> 62 | D11: ='Advanced Guide'!$C$13 -> 0 | H11: 7 | I11: 40 | M11: 15
A12: Computer Essentials | B12: 2.5: Networking and User Accounts | C12: =SUM(DesktopProPlusV5[[#This Row],[Live Projects]:[Exams]]) -> 78 | D12: ='Advanced Guide'!$C$13 -> 0 | H12: 18 | I12: 40 | M12: 20
A13: Computer Essentials | B13: 2.6: Databases | C13: =SUM(DesktopProPlusV5[[#This Row],[Live Projects]:[Exams]]) -> 47 | D13: ='Advanced Guide'!$C$13 -> 0 | H13: 17 | I13: 20 | M13: 10
A14: Computer Essentials | B14: 2.7: Computer Programming | C14: =SUM(DesktopProPlusV5[[#This Row],[Live Projects]:[Exams]]) -> 44 | D14: ='Advanced Guide'!$C$13 -> 0 | H14: 19 | L14: 0 | M14: 25
A15: Computer Essentials | B15: 2.8: Information Systems | C15: =SUM(DesktopProPlusV5[[#This Row],[Live Projects]:[Exams]]) -> 40 | D15: ='Advanced Guide'!$C$13 -> 0 | H15: 15 | L15: 0 | M15: 25
A16: Computer Essentials | B16: 2.9: Exam: Computer Essentials | C16: =SUM(DesktopProPlusV5[[#This Row],[Live Projects]:[Exams]]) -> 60 | N16: 60
A17: Common Office Features | B17: 3.1: Getting Started with Office | C17: =SUM(DesktopProPlusV5[[#This Row],[Live Projects]:[Exams]]) -> 62 | D17: ='Advanced Guide'!$C$13 -> 0 | H17: 22 | I17: 20 | J17: 10 | M17: 10 | N17: 0
A18: Common Office Features | B18: 3.2: Customizing Views and Options | C18: =SUM(DesktopProPlusV5[[#This Row],[Live Projects]:[Exams]]) -> 42 | D18: ='Advanced Guide'!$C$13 -> 0 | H18: 7 | I18: 20 | J18: 10 | M18: 5 | N18: 0
A19: Common Office Features | B19: 3.3: Printing Files | C19: =SUM(DesktopProPlusV5[[#This Row],[Live Projects]:[Exams]]) -> 40 | D19: ='Advanced Guide'!$C$13 -> 0 | H19: 5 | I19: 20 | J19: 10 | M19: 5 | N19: 0
A20: Common Office Features | B20: 3.4: Navigating Files | C20: =SUM(DesktopProPlusV5[[#This Row],[Live Projects]:[Exams]]) -> 44 | D20: ='Advanced Guide'!$C$13 -> 0 | H20: 9 | I20: 20 | J20: 10 | M20: 5 | N20: 0
A21: Common Office Features | B21: 3.5: Working with Objects | C21: =SUM(DesktopProPlusV5[[#This Row],[Live Projects]:[Exams]]) -> 44 | D21: ='Advanced Guide'!$C$13 -> 0 | H21: 9 | I21: 20 | J21: 10 | M21: 5 | N21: 0
A22: Word | B22: 4.01: Introduction to Word | C22: =SUM(DesktopProPlusV5[[#This Row],[Live Projects]:[Exams]]) -> 8 | D22: ='Advanced Guide'!$C$13 -> 0 | H22: 3 | L22: 0 | M22: 5 | N22: 0
A23: Word | B23: 4.02: Creating Documents and Using the Clipboard | C23: =SUM(DesktopProPlusV5[[#This Row],[Live Projects]:[Exams]]) -> 104 | D23: ='Advanced Guide'!$C$13 -> 0 | H23: 19 | I23: 30 | J23: 20 | K23: 25 | M23: 10 | N23: 0
A24: Word | B24: 4.03: Modifying Fonts | C24: =SUM(DesktopProPlusV5[[#This Row],[Live Projects]:[Exams]]) -> 93 | D24: ='Advanced Guide'!$C$13 -> 0 | H24: 8 | I24: 30 | J24: 20 | K24: 25 | M24: 10 | N24: 0
A25: Word | B25: 4.04: Formatting Paragraphs | C25: =SUM(DesktopProPlusV5[[#This Row],[Live Projects]:[Exams]]) -> 101 | D25: ='Advanced Guide'!$C$13 -> 0 | H25: 16 | I25: 30 | J25: 20 | K25: 25 | M25: 10 | N25: 0
A26: Word | B26: 4.05: Formatting Pages | C26: =SUM(DesktopProPlusV5[[#This Row],[Live Projects]:[Exams]]) -> 94 | D26: ='Advanced Guide'!$C$13 -> 0 | H26: 9 | I26: 30 | J26: 20 | K26: 25 | M26: 10 | N26: 0
A27: Word | B27: 4.06: Editing Documents | C27: =SUM(DesktopProPlusV5[[#This Row],[Live Projects]:[Exams]]) -> 95 | D27: ='Advanced Guide'!$C$13 -> 0 | H27: 10 | I27: 30 | J27: 20 | K27: 25 | M27: 10 | N27: 0
A28: Word | B28: 4.07: Inserting Illustrations and Other Elements | C28: =SUM(DesktopProPlusV5[[#This Row],[Live Projects]:[Exams]]) -> 96 | D28: ='Advanced Guide'!$C$13 -> 0 | H28: 11 | I28: 30 | J28: 20 | K28: 25 | M28: 10 | N28: 0
A29: Word | B29: 4.08: Creating and Formatting Tables | C29: =SUM(DesktopProPlusV5[[#This Row],[Live Projects]:[Exams]]) -> 97 | D29: ='Advanced Guide'!$C$13 -> 0 | H29: 12 | I29: 30 | J29: 20 | K29: 25 | M29: 10 | N29: 0
A30: Word | B30: 4.09: Using Themes, Styles, and Templates | C30: =SUM(DesktopProPlusV5[[#This Row],[Live Projects]:[Exams]]) -> 96 | D30: ='Advanced Guide'!$C$13 -> 0 | H30: 11 | I30: 30 | J30: 20 | K30: 25 | M30: 10 | N30: 0
A31: Word | B31: 4.10: Managing References | C31: =SUM(DesktopProPlusV5[[#This Row],[Live Projects]:[Exams]]) -> 100 | D31: ='Advanced Guide'!$C$13 -> 0 | H31: 15 | I31: 30 | J31: 20 | K31: 25 | M31: 10 | N31: 0
A32: Word | B32: 4.11: Managing Headers, Footers, and Sections | C32: =SUM(DesktopProPlusV5[[#This Row],[Live Projects]:[Exams]]) -> 102 | D32: ='Advanced Guide'!$C$13 -> 0 | H32: 17 | I32: 30 | J32: 20 | K32: 25 | M32: 10 | N32: 0
A33: Word | B33: 4.12: Using Office Collaboration Features | C33: =SUM(DesktopProPlusV5[[#This Row],[Live Projects]:[Exams]]) -> 98 | D33: ='Advanced Guide'!$C$13 -> 0 | H33: 13 | I33: 30 | J33: 20 | K33: 25 | M33: 10 | N33: 0
A34: Word | B34: 4.13: Using Macros | C34: =SUM(DesktopProPlusV5[[#This Row],[Live Projects]:[Exams]]) -> 11 | D34: ='Advanced Guide'!$C$13 -> 0 | H34: 6 | L34: 0 | M34: 5 | N34: 0
A35: Word | B35: 4.14: Office Pro Projects (Uses Live Application) | C35: =SUM(DesktopProPlusV5[[#This Row],[Live Projects]:[Exams]]) -> 120 | E35: ='Pacing Guide'!G8 -> 120
A36: Word | B36: 4.15: My Projects/Assignments | C36: =SUM(DesktopProPlusV5[[#This Row],[Live Projects]:[Exams]]) -> 0 | E36: ='Pacing Guide'!G9 -> 0
A37: Word | B37: 4.16: MOS Practice: Domain Questions | C37: =SUM(DesktopProPlusV5[[#This Row],[Live Projects]:[Exams]]) -> 120 | E37: ='Pacing Guide'!G10 -> 120
A38: Word | B38: 4.17: MOS Practice: Certification (A and B) | C38: =SUM(DesktopProPlusV5[[#This Row],[Live Projects]:[Exams]]) -> 300 | E38: ='Pacing Guide'!G11 -> 300
A39: Word | B39: 4.18: MOS Certification | C39: =SUM(DesktopProPlusV5[[#This Row],[Live Projects]:[Exams]]) -> 50 | E39: ='Pacing Guide'!G12 -> 50
A40: Word | B40: 4.19: Office Pro Word Exam | C40: =SUM(DesktopProPlusV5[[#This Row],[Live Projects]:[Exams]]) -> 60 | E40: ='Pacing Guide'!G13 -> 60
A41: Excel | B41: 5.01: Introduction to Excel | C41: =SUM(DesktopProPlusV5[[#This Row],[Live Projects]:[Exams]]) -> 8 | D41: ='Advanced Guide'!$C$13 -> 0 | H41: 3 | L41: 0 | M41: 5 | N41: 0
A42: Excel | B42: 5.02: Creating and Managing Workbooks | C42: =SUM(DesktopProPlusV5[[#This Row],[Live Projects]:[Exams]]) -> 95 | D42: ='Advanced Guide'!$C$13 -> 0 | H42: 10 | I42: 30 | J42: 20 | K42: 25 | M42: 10 | N42: 0
A43: Excel | B43: 5.03: Organizing and Entering Data | C43: =SUM(DesktopProPlusV5[[#This Row],[Live Projects]:[Exams]]) -> 95 | D43: ='Advanced Guide'!$C$13 -> 0 | H43: 10 | I43: 30 | J43: 20 | K43: 25 | M43: 10 | N43: 0
A44: Excel | B44: 5.04: Changing Properties and Printing Worksheets | C44: =SUM(DesktopProPlusV5[[#This Row],[Live Projects]:[Exams]]) -> 95 | D44: ='Advanced Guide'!$C$13 -> 0 | H44: 10 | I44: 30 | J44: 20 | K44: 25 | M44: 10 | N44: 0
A45: Excel | B45: 5.05: Formatting Cells | C45: =SUM(DesktopProPlusV5[[#This Row],[Live Projects]:[Exams]]) -> 98 | D45: ='Advanced Guide'!$C$13 -> 0 | H45: 13 | I45: 30 | J45: 20 | K45: 25 | M45: 10 | N45: 0
A46: Excel | B46: 5.06: Entering Simple Formulas | C46: =SUM(DesktopProPlusV5[[#This Row],[Live Projects]:[Exams]]) -> 115 | D46: ='Advanced Guide'!$C$13 -> 0 | H46: 15 | I46: 40 | J46: 25 | K46: 25 | M46: 10 | N46: 0
A47: Excel | B47: 5.07: Using Advanced Functions | C47: =SUM(DesktopProPlusV5[[#This Row],[Live Projects]:[Exams]]) -> 133 | D47: ='Advanced Guide'!$C$13 -> 0 | H47: 18 | I47: 50 | J47: 30 | K47: 25 | M47: 10 | N47: 0
A48: Excel | B48: 5.08: Displaying Data in Charts | C48: =SUM(DesktopProPlusV5[[#This Row],[Live Projects]:[Exams]]) -> 91 | D48: ='Advanced Guide'!$C$13 -> 0 | H48: 6 | I48: 30 | J48: 20 | K48: 25 | M48: 10 | N48: 0
A49: Excel | B49: 5.09: Organizing Data in Tables | C49: =SUM(DesktopProPlusV5[[#This Row],[Live Projects]:[Exams]]) -> 93 | D49: ='Advanced Guide'!$C$13 -> 0 | H49: 8 | I49: 30 | J49: 20 | K49: 25 | M49: 10 | N49: 0
A50: Excel | B50: 5.10: Summarizing Complex Data | C50: =SUM(DesktopProPlusV5[[#This Row],[Live Projects]:[Exams]]) -> 99 | D50: ='Advanced Guide'!$C$13 -> 0 | H50: 14 | I50: 30 | J50: 20 | K50: 25 | M50: 10 | N50: 0
A51: Excel | B51: 5.11: Office Pro Projects (Uses Live Application) | C51: =SUM(DesktopProPlusV5[[#This Row],[Live Projects]:[Exams]]) -> 120 | E51: ='Pacing Guide'!G16 -> 120
A52: Excel | B52: 5.12: My Projects/Assignments | C52: =SUM(DesktopProPlusV5[[#This Row],[Live Projects]:[Exams]]) -> 0 | E52: ='Pacing Guide'!G17 -> 0
A53: Excel | B53: 5.13: MOS Practice: Domain Questions | C53: =SUM(DesktopProPlusV5[[#This Row],[Live Projects]:[Exams]]) -> 120 | E53: ='Pacing Guide'!G18 -> 120
A54: Excel | B54: 5.14: MOS Practice: Certification (A and B) | C54: =SUM(DesktopProPlusV5[[#This Row],[Live Projects]:[Exams]]) -> 300 | E54: ='Pacing Guide'!G19 -> 300
A55: Excel | B55: 5.15: MOS Certification | C55: =SUM(DesktopProPlusV5[[#This Row],[Live Projects]:[Exams]]) -> 50 | E55: ='Pacing Guide'!G20 -> 50
A56: Excel | B56: 5.16: Office Pro Excel Exam | C56: =SUM(DesktopProPlusV5[[#This Row],[Live Projects]:[Exams]]) -> 60 | E56: ='Pacing Guide'!G21 -> 60
A57: PowerPoint | B57: 6.01: Introduction to PowerPoint | C57: =SUM(DesktopProPlusV5[[#This Row],[Live Projects]:[Exams]]) -> 12 | D57: ='Advanced Guide'!$C$13 -> 0 | H57: 7 | L57: 0 | M57: 5 | N57: 0
A58: PowerPoint | B58: 6.02: Creating and Managing Presentations | C58: =SUM(DesktopProPlusV5[[#This Row],[Live Projects]:[Exams]]) -> 75 | D58: ='Advanced Guide'!$C$13 -> 0 | H58: 5 | I58: 25 | J58: 15 | K58: 20 | M58: 10 | N58: 0
A59: PowerPoint | B59: 6.03: Formatting Textual Content | C59: =SUM(DesktopProPlusV5[[#This Row],[Live Projects]:[Exams]]) -> 81 | D59: ='Advanced Guide'!$C$13 -> 0 | H59: 11 | I59: 25 | J59: 15 | K59: 20 | M59: 10 | N59: 0
A60: PowerPoint | B60: 6.04: Designing Slides | C60: =SUM(DesktopProPlusV5[[#This Row],[Live Projects]:[Exams]]) -> 76 | D60: ='Advanced Guide'!$C$13 -> 0 | H60: 6 | I60: 25 | J60: 15 | K60: 20 | M60: 10 | N60: 0
A61: PowerPoint | B61: 6.05: Using the Slide Master | C61: =SUM(DesktopProPlusV5[[#This Row],[Live Projects]:[Exams]]) -> 77 | D61: ='Advanced Guide'!$C$13 -> 0 | H61: 7 | I61: 25 | J61: 15 | K61: 20 | M61: 10 | N61: 0
A62: PowerPoint | B62: 6.06: Formatting SmartArt and Shapes | C62: =SUM(DesktopProPlusV5[[#This Row],[Live Projects]:[Exams]]) -> 77 | D62: ='Advanced Guide'!$C$13 -> 0 | H62: 7 | I62: 25 | J62: 15 | K62: 20 | M62: 10 | N62: 0
A63: PowerPoint | B63: 6.07: Formatting Tables and Charts | C63: =SUM(DesktopProPlusV5[[#This Row],[Live Projects]:[Exams]]) -> 77 | D63: ='Advanced Guide'!$C$13 -> 0 | H63: 7 | I63: 25 | J63: 15 | K63: 20 | M63: 10 | N63: 0
A64: PowerPoint | B64: 6.08: Formatting Pictures and Other Media | C64: =SUM(DesktopProPlusV5[[#This Row],[Live Projects]:[Exams]]) -> 79 | D64: ='Advanced Guide'!$C$13 -> 0 | H64: 9 | I64: 25 | J64: 15 | K64: 20 | M64: 10 | N64: 0
A65: PowerPoint | B65: 6.09: Applying Animations and Transitions | C65: =SUM(DesktopProPlusV5[[#This Row],[Live Projects]:[Exams]]) -> 77 | D65: ='Advanced Guide'!$C$13 -> 0 | H65: 7 | I65: 25 | J65: 15 | K65: 20 | M65: 10 | N65: 0
A66: PowerPoint | B66: 6.10: Delivering Presentations | C66: =SUM(DesktopProPlusV5[[#This Row],[Live Projects]:[Exams]]) -> 81 | D66: ='Advanced Guide'!$C$13 -> 0 | H66: 11 | I66: 25 | J66: 15 | K66: 20 | M66: 10 | N66: 0
A67: PowerPoint | B67: 6.11: Office Pro Projects (Uses Live Application) | C67: =SUM(DesktopProPlusV5[[#This Row],[Live Projects]:[Exams]]) -> 120 | E67: ='Pacing Guide'!G24 -> 120
A68: PowerPoint | B68: 6.12: My Projects/Assignments | C68: =SUM(DesktopProPlusV5[[#This Row],[Live Projects]:[Exams]]) -> 0 | E68: ='Pacing Guide'!G25 -> 0
A69: PowerPoint | B69: 6.13: MOS Practice: Domain Questions | C69: =SUM(DesktopProPlusV5[[#This Row],[Live Projects]:[Exams]]) -> 90 | E69: ='Pacing Guide'!G26 -> 90
A70: PowerPoint | B70: 6.14: MOS Practice: Certification (A and B) | C70: =SUM(DesktopProPlusV5[[#This Row],[Live Projects]:[Exams]]) -> 240 | E70: ='Pacing Guide'!G27 -> 240
A71: PowerPoint | B71: 6.15: MOS Certification | C71: =SUM(DesktopProPlusV5[[#This Row],[Live Projects]:[Exams]]) -> 50 | E71: ='Pacing Guide'!G28 -> 50
A72: PowerPoint | B72: 6.16: Office Pro PowerPoint Exam | C72: =SUM(DesktopProPlusV5[[#This Row],[Live Projects]:[Exams]]) -> 60 | E72: ='Pacing Guide'!G29 -> 60
A73: Access | B73: 7.1: Introduction to Access | C73: =SUM(DesktopProPlusV5[[#This Row],[Live Projects]:[Exams]]) -> 9 | D73: ='Advanced Guide'!$C$13 -> 0 | H73: 4 | L73: 0 | M73: 5 | N73: 0
A74: Access | B74: 7.2: Managing Databases | C74: =SUM(DesktopProPlusV5[[#This Row],[Live Projects]:[Exams]]) -> 96 | D74: ='Advanced Guide'!$C$13 -> 0 | H74: 6 | I74: 20 | J74: 20 | L74: 40 | M74: 10 | N74: 0
A75: Access | B75: 7.3: Designing and Creating Tables | C75: =SUM(DesktopProPlusV5[[#This Row],[Live Projects]:[Exams]]) -> 85 | D75: ='Advanced Guide'!$C$13 -> 0 | H75: 15 | I75: 25 | J75: 15 | K75: 20 | M75: 10 | N75: 0
A76: Access | B76: 7.4: Using Simple Queries | C76: =SUM(DesktopProPlusV5[[#This Row],[Live Projects]:[Exams]]) -> 78 | D76: ='Advanced Guide'!$C$13 -> 0 | H76: 8 | I76: 25 | J76: 15 | K76: 20 | M76: 10 | N76: 0
A77: Access | B77: 7.5: Creating Forms | C77: =SUM(DesktopProPlusV5[[#This Row],[Live Projects]:[Exams]]) -> 76 | D77: ='Advanced Guide'!$C$13 -> 0 | H77: 6 | I77: 25 | J77: 15 | K77: 20 | M77: 10 | N77: 0
A78: Access | B78: 7.6: Creating Reports | C78: =SUM(DesktopProPlusV5[[#This Row],[Live Projects]:[Exams]]) -> 80 | D78: ='Advanced Guide'!$C$13 -> 0 | H78: 10 | I78: 25 | J78: 15 | K78: 20 | M78: 10 | N78: 0
A79: Access | B79: 7.7: Surveying Advanced Access Features | C79: =SUM(DesktopProPlusV5[[#This Row],[Live Projects]:[Exams]]) -> 43 | D79: ='Advanced Guide'!$C$13 -> 0 | H79: 33 | L79: 0 | M79: 10 | N79: 0
A80: Access | B80: 7.8: Exam: Access | C80: =SUM(DesktopProPlusV5[[#This Row],[Live Projects]:[Exams]]) -> 60 | N80: 60
A81: Outlook | B81: 8.1: Introduction to Outlook | C81: =SUM(DesktopProPlusV5[[#This Row],[Live Projects]:[Exams]]) -> 11 | D81: ='Advanced Guide'!$C$13 -> 0 | H81: 6 | L81: 0 | M81: 5 | N81: 0
A82: Outlook | B82: 8.2: Sending and Receiving Messages | C82: =SUM(DesktopProPlusV5[[#This Row],[Live Projects]:[Exams]]) -> 85 | D82: ='Advanced Guide'!$C$13 -> 0 | H82: 15 | I82: 25 | J82: 15 | K82: 20 | M82: 10 | N82: 0
A83: Outlook | B83: 8.3: Managing Messages | C83: =SUM(DesktopProPlusV5[[#This Row],[Live Projects]:[Exams]]) -> 90 | D83: ='Advanced Guide'!$C$13 -> 0 | H83: 20 | I83: 25 | J83: 15 | K83: 20 | M83: 10 | N83: 0
A84: Outlook | B84: 8.4: Working with the Calendar | C84: =SUM(DesktopProPlusV5[[#This Row],[Live Projects]:[Exams]]) -> 83 | D84: ='Advanced Guide'!$C$13 -> 0 | H84: 13 | I84: 25 | J84: 15 | K84: 20 | M84: 10 | N84: 0
A85: Outlook | B85: 8.5: Managing Contacts and Groups | C85: =SUM(DesktopProPlusV5[[#This Row],[Live Projects]:[Exams]]) -> 82 | D85: ='Advanced Guide'!$C$13 -> 0 | H85: 12 | I85: 25 | J85: 15 | K85: 20 | M85: 10 | N85: 0
A86: Outlook | B86: 8.6: Exam: Outlook | C86: =SUM(DesktopProPlusV5[[#This Row],[Live Projects]:[Exams]]) -> 60 | N86: 60
C87: =SUM(DesktopProPlusV5[[#This Row],[Live Projects]:[Exams]]) -> 0
C88: =SUM(DesktopProPlusV5[[#This Row],[Live Projects]:[Exams]]) -> 0
A90: Highest Score
A91: Test Score
A92: Average Score
A93: 100% or 0
A94: Pass/Fall
A95: Participation
A96: No Grade

Sheet TypicalWeeks (hidden)
A1: Weeks
A2: 1
A3: 4
A4: 5
A5: 6
A6: 7
A7: 8
A8: 9
A9: 10
A10: 11
A11: 12
A12: 13
A13: 14
A14: 16
A15: 17
A16: 18
A17: 19
A18: 20.1
A19: 21.21470588
A20: 22.32941176
A21: 23.44411765
A22: 24.55882353
A23: 25.67352941
A24: 26.78823529
A25: 27.90294118
A26: 29.01764706
A27: 30.13235294
A28: 31.24705882
A29: 32.36176471
A30: 33.47647059
A31: 34.59117647
A32: 35.70588235
A33: 36.82058824
A34: 37.93529412
A35: 39.05
A36: 40.16470588
A37: 41.27941176
A38: 42.39411765
A39: 43.50882353
